Workbook

Sheet Tool Description
B1: DC-E-WISE (Data Center Energy and Water Information Simulator and Evaluator)
C6: Version | E6: 2023.V1 | F6: Note: The cooling energy and water use for the systems included in this tool were calculated based on our developed 8760 energy and water analysis based on meteorological year (TMY3) weather data for Phoenix-Sky Harbor International Airport (weather station with location code 722780) from the EnergyPlus weather database.Therefore, this version of the MCDST is currently applicable for data centers in Phoenix, AZ. Its application can be extended to other locations within climate type 2B (ASHRAE's classification).
C7: Application | E7: Phoenix, AZ
B12: Tool Description
B13: The DC-E-WISE is an excel-based tool that we developed to facilitate the comparison of nine cooling systems based on five main criteria: Energy Use, Onsite Water Use, Total Cooling Water Use, Reliability, and Maintenance. The nine studied cooling systems are: Air-cooled chiller, Air-cooled chiller + Air-side economizer (ASE), Pre-cooled-air-cooled chiller, Pre-cooled-air-cooled chiller + ASE, Water-cooled chiller, Water-cooled chiller + ASE, Water-cooled chiller + Water-side economizer (WSE), Water-cooled chiller + ASE + WSE, and Evaporative cooling system + ASE. The DC-E-WISE tool employs the technique for order preference by similarity to ideal solution (TOPSIS) method to rank the modeled cooling systems. The tool then presents a tabulated list of the ranked cooling systems, which includes energy and water use data, as the result. By utilizing the TOPSIS method, the tool provides a systematic and objective way of comparing and ranking the cooling systems, enabling users to make informed decisions when selecting and optimizing cooling systems for their data centers. The tabulated result provides a concise summary of the ranked cooling systems, allowing users to quickly identify the most efficient and effective options for their specific needs. This tool utilizes modeling data for cooling energy, water use (onsite cooling and humidification), and total cooling water use in DCs located in the greater Phoenix area. The power and water use data, which are model outputs, are normalized based on the modeled IT load (in MW) at the uninterrupted power supply (UPS) output. Therefore, the tool can calculate the total energy and onsite and total cooling water use for a given IT load as entered by the user. Along with overall DC power and water use, the tool provides estimates for key DC metrics including PUE, WUEOnsite, and WUESource.
B44: Disclaimer
B45: The DC-E-WISE was prepared as an account of work sponsored by Salt River Project (SRP).

Sheet User_Interaction
M3: Availability of Cooling System (Percentage of the Year)
M4: 50%
M5: 100%
M6: 100%
M7: 100%
M8: 100%
M9: 100%
M10: 100%
M11: 100%
M12: 100%
F125: =_xlfn.RANK.EQ(E125,$E$25:$E$33,0) -> 

Sheet Cooling Systems Graphs

Sheet Cooling System Schematics
B1: Cooling Systems Schematics | XEW1: Cooling Systems Modeling Parameters and Assumptions

Sheet Acknowledgments
C1: Acknowledgments
C4: Development Team | F4: Sponsor
C5: Leila Karimi* (UofA) | F5: Salt River Project (SRP): Arizona electric power and water utility company
C6: Kerri Hickenbottom (UofA)
C7: Reema Shinh (UofA)
C8: Leeann Yacuel (SRP)
C9: Michael Green (SRP)
C10: Jamie Ashby (SRP)
C11: Joseph Degraft-Johnson (SRP)
C14: Advising and Outreach | F14: Contact
C15: Colin Laisure-Pool, Central AZ ASHRAE GAC Chair | F15: *Email: lkarimi@arizona.edu
C16: Matt Renner, Northshore IO Inc | F16: *Phone: (915) 207-0240

Sheet No Airflow Containment
A2: Airflow Type
A3: Configuration | B3: Selected
C7: Parameters Weight Percentage | H7: Normalized Performance Values (NPVs) | M7: Weighted Normalized Values(WNVs) | R7: Ideal Best Value (V-) | W7: Ideal Worst Value (V-) | AC7: Cooling System Availbility (% of the Year)
C8: 30.74 | D8: 13.46 | E8: 14.08 | F8: 35.21 | G8: 7
A9: Cooling System | B9: Paramter Unit | C9: Energy Use (MWh/MW IT Load) | D9: Onsite Water Use (acre-ft/MW IT Load) | E9: Total Cooling Water Use (acre-ft/MW IT Load) | F9: Reliability | G9: Maintenance | H9: NPV_Energy | I9: NPV_Onsite Water | J9: NPV_Source Water | K9: NPV_Reliability | L9: NPV_Maintenance | M9: WNV_Energy | N9: WNV_Onsite Water | O9: WNV_Source Water | P9: WNV_Reliability | Q9: WNV_Maintenance | R9: V+_Energy | S9: V+_Onsite Water | T9: V+_Source Water | U9: V+_Reliability | V9: V+_Maintenance | W9: V-_Energy | X9: V-_Onsite Water | Y9: V-_Source Water | Z9: V-_Reliability | AA9: V-_Maintenance
A10: Air-Cooled Chiller | B10: Parameter Unit/MW IT Load | C10: 3,747.04 | D10: 0.003 | E10: 4.91 | F10: 89 | G10: 81 | H10: =C10/SQRT(SUM($C$10^2+$C$11^2+$C$12^2+$C$13^2+$C$14^2+$C$15^2+$C$16^2+$C$17^2+$C$18)) -> 0.4549659647 | I10: =D10/SQRT(SUM($D$10^2+$D$11^2+$D$12^2+$D$13^2+$D$14^2+$D$15^2+$D$16^2+$D$17^2+$D$18^2)) -> 7.188509334e-05 | J10: =E10/SQRT(SUM($E$10^2+$E$11^2+$E$12^2+$E$13^2+$E$14^2+$E$15^2+$E$16^2+$E$17^2+$E$18^2)) -> 0.09821560913 | K10: =F10/SQRT(SUM($F$10^2+$F$11^2+$F$12^2+$F$13^2+$F$14^2+$F$15^2+$F$16^2+$F$17^2+$F$18^2)) -> 0.358668922 | L10: =G10/SQRT(SUM($G$10^2+$G$11^2+$G$12^2+$G$13^2+$G$14^2+$G$15^2+$G$16^2+$G$17^2+$G$18^2)) -> 0.2221213077 | M10: =$C$8/100*H10 -> 0.1398563797 | N10: =$D$8/100*I10 -> 9.673773763e-06 | O10: =$E$8/100*J10 -> 0.01383189419 | P10: =$F$8/100*K10 -> 0.126280095 | Q10: =$G$8/100*L10 -> 0.01446361564 | R10: =MIN(M10:M18) -> 0.01627012108 | S10: =MIN(N10:N18) -> 9.673773763e-06 | T10: =MIN(O10:O18) -> 0.01278675514 | U10: =MAX(P10:P18) -> 0.126280095 | V10: =MIN(Q10:Q18) -> 0.0073210894 | W10: =MAX(M10:M18) -> 0.1398563797 | X10: =MAX(N10:N18) -> 0.07184389315 | Y10: =MAX(O10:O18) -> 0.07363863833 | Z10: =MIN(P10:P18) -> 0.08335905146 | AA10: =MAX(Q10:Q18) -> 0.02910579444 | AC10: 100
A11: Air-Cooled Chiller+ ASE | B11: Parameter Unit/MW IT Load | C11: 2,866.77 | D11: 0.78 | E11: 4.54 | F11: 83.25 | G11: 100 | H11: =C11/SQRT(SUM($C$10^2+$C$11^2+$C$12^2+$C$13^2+$C$14^2+$C$15^2+$C$16^2+$C$17^2+$C$18)) -> 0.3480829818 | I11: =D11/SQRT(SUM($D$10^2+$D$11^2+$D$12^2+$D$13^2+$D$14^2+$D$15^2+$D$16^2+$D$17^2+$D$18^2)) -> 0.01873890288 | J11: =E11/SQRT(SUM($E$10^2+$E$11^2+$E$12^2+$E$13^2+$E$14^2+$E$15^2+$E$16^2+$E$17^2+$E$18^2)) -> 0.09079442971 | K11: =F11/SQRT(SUM($F$10^2+$F$11^2+$F$12^2+$F$13^2+$F$14^2+$F$15^2+$F$16^2+$F$17^2+$F$18^2)) -> 0.3354964917 | L11: =G11/SQRT(SUM($G$10^2+$G$11^2+$G$12^2+$G$13^2+$G$14^2+$G$15^2+$G$16^2+$G$17^2+$G$18^2)) -> 0.2742238367 | M11: 0.1070005879 | N11: =$D$8/100*I11 -> 0.00252174545 | O11: =$E$8/100*J11 -> 0.01278675514 | P11: =$F$8/100*K11 -> 0.1181215495 | Q11: =$G$8/100*L11 -> 0.01785631561 | AC11: 100
A12: Pre-Cooled-Air-Cooled Chiller | B12: Parameter Unit/MW IT Load | C12: 3,440.87 | D12: 5.97 | E12: 10.48 | F12: 88 | G12: 103 | H12: =C12/SQRT(SUM($C$10^2+$C$11^2+$C$12^2+$C$13^2+$C$14^2+$C$15^2+$C$16^2+$C$17^2+$C$18)) -> 0.4177907732 | I12: 0.1430034124 | J12: 0.2095733069 | K12: =F12/SQRT(SUM($F$10^2+$F$11^2+$F$12^2+$F$13^2+$F$14^2+$F$15^2+$F$16^2+$F$17^2+$F$18^2)) -> 0.3546389341 | L12: 0.2824505518 | M12: 0.1284287388 | N12: 0.01924436061 | O12: 0.02951461415 | P12: =$F$8/100*K12 -> 0.1248612175 | Q12: =$G$8/100*L12 -> 0.01839200508 | AC12: 100
A13: Pre-Cooled-Air-Cooled Chiller +ASE | B13: Parameter Unit/MW IT Load | C13: 2,560.07 | D13: 6.87 | E13: 10.14 | F13: 82.25 | G13: 122 | H13: 0.3108441936 | I13: 0.1647127106 | J13: =E13/SQRT(SUM($E$10^2+$E$11^2+$E$12^2+$E$13^2+$E$14^2+$E$15^2+$E$16^2+$E$17^2+$E$18^2)) -> 0.2028122324 | K13: 0.3314665038 | L13: 0.3345530807 | M13: 0.09555339728 | N13: 0.02216584028 | O13: 0.02856243895 | P13: 0.116702672 | Q13: 0.02178470504 | AC13: 100
A14: Water-Cooled Chiller | B14: Parameter Unit/MW IT Load | C14: 2,947.35 | D14: 22.28 | E14: 26.14 | F14: 88.5 | G14: 135 | H14: 0.3578675264 | I14: 0.5338666266 | J14: 0.5228831004 | K14: 0.3566539281 | L14: 0.3702021795 | M14: 0.1100083535 | N14: 0.07184389315 | O14: 0.07363863833 | P14: 0.1255706562 | Q14: 0.02410602607 | AC14: 100
A15: Water-Cooled Chiller+ASE | B15: Parameter Unit/MW IT Load | C15: 2,240.29 | D15: 15.13 | E15: 18.07 | F15: 82.75 | G15: 154 | H15: =C15/SQRT(SUM($C$10^2+$C$11^2+$C$12^2+$C$13^2+$C$14^2+$C$15^2+$C$16^2+$C$17^2+$C$18)) -> 0.2720162317 | I15: 0.3625404874 | J15: 0.3614574454 | K15: 0.3334814977 | L15: 0.4223047085 | M15: 0.08361769528 | N15: 0.04878806568 | O15: 0.05090475114 | P15: 0.1174121108 | Q15: 0.02749872604 | AC15: 100
A16: Water-Cooled Chiller+WSE | B16: Parameter Unit/MW IT Load | C16: 2,907.27 | D16: 22.19 | E16: 26.00 | F16: 86.25 | G16: 144 | H16: 0.3530010088 | I16: 0.5317100738 | J16: 0.5200826553 | K16: 0.3475864553 | L16: 0.3948823248 | M16: 0.1085123877 | N16: 0.07155367993 | O16: 0.07324424624 | P16: 0.1223781819 | Q16: 0.02571309448 | AC16: 100
A17: Water-Cooled Chiller+WSE+ASE | B17: Parameter Unit/MW IT Load | C17: 2,240.29 | D17: 15.13 | E17: 18.10 | F17: 81.5 | G17: 163 | H17: 0.2720162317 | I17: 0.3625404874 | J17: 0.3620575408 | K17: 0.3284440129 | L17: 0.4469848538 | M17: 0.08361769528 | N17: 0.04878806568 | O17: 0.05098926373 | P17: 0.1156385139 | Q17: 0.02910579444 | AC17: 100
A18: Evaporative Cooling +ASE | B18: Parameter Unit/MW IT Load | C18: 435.91 | D18: 14.55 | E18: 15.12 | F18: 59 | G18: 41 | H18: =C18/SQRT(SUM($C$10^2+$C$11^2+$C$12^2+$C$13^2+$C$14^2+$C$15^2+$C$16^2+$C$17^2+$C$18)) -> 0.052928235 | I18: 0.3485228942 | J18: 0.3023680545 | K18: 0.2367617884 | L18: =G18/SQRT(SUM($G$10^2+$G$11^2+$G$12^2+$G$13^2+$G$14^2+$G$15^2+$G$16^2+$G$17^2+$G$18^2)) -> 0.112431773 | M18: 0.01627012108 | N18: 0.04690167979 | O18: 0.04258307793 | P18: 0.08335905146 | Q18: 0.0073210894 | AC18: 50
B20: Σparameters' weight | C20: =C8+D8+E8+F8+G8 -> 100.00
I21: Parameter Weight Percentage calculation based on entered paramters' importance comparison by user
A23: Cooling System | B23: Distanc from Ideal Best (S+) | C23: Distanc from Ideal Worst (S-) | D23: S++S- | E23: Perfomance Score (PS) | F23: Rank of Cooling Systems | J23: Parameters
A24: Air-Cooled Chiller | B24: =SQRT(SUM((M10-$R$10)^2+(N10-$S$10)^2+(O10-$T$10)^2+(P10-$U$10)^2+(Q10-$V$10)^2)) -> 0.1237968954 | C24: =SQRT(SUM((M10-$W$10)^2+(N10-$X$10)^2+(O10-$Y$10)^2+(P10-$Z$10)^2+(Q10-$AA$10)^2)) -> 0.1038923053 | D24: =B24+C24 -> 0.2276892007 | E24: =C24/D24 -> 0.4562899995 | F24: =_xlfn.RANK.EQ(E24,$E$24:$E$32,0) -> 4 | I24: Parameters | K24: Energy Usage | L24: Onsite water Use | M24: Total Water Use | N24: Reliability | O24: Maintenance
A25: Air-Cooled Chiller+ ASE | B25: =SQRT(SUM((M11-$R$10)^2+(N11-$S$10)^2+(O11-$T$10)^2+(P11-$U$10)^2+(Q11-$V$10)^2)) -> 0.09173811075 | C25: =SQRT(SUM((M11-$W$10)^2+(N11-$X$10)^2+(O11-$Y$10)^2+(P11-$Z$10)^2+(Q11-$AA$10)^2)) -> 0.1045131425 | D25: 0.1962512532 | E25: 0.5325476437 | F25: =_xlfn.RANK.EQ(E25,$E$24:$E$32,0) -> 2 | J25: Energy Usage | K25: 1 | L25: 3 | M25: 2 | N25: 0.8 | O25: 5
A26: Pre-Cooled-Air-Cooled Chiller | B26: 0.1155591985 | C26: 0.08174011488 | D26: 0.1972993134 | E26: 0.414294979 | F26: 7 | J26: Onsite water Use | K26: =1/L25 -> 0.3333333333 | L26: 1 | M26: 1 | N26: 0.5 | O26: 2
A27: Pre-Cooled-Air-Cooled Chiller +ASE | B27: 0.08559514593 | C27: 0.08733797756 | D27: 0.1729331235 | E27: 0.5050390336 | F27: 3 | J27: Total Water Use | K27: =1/M25 -> 0.5 | L27: =1/M26 -> 1 | M27: 1 | N27: 0.4 | O27: 1.5
A28: Water-Cooled Chiller | B28: 0.133911166 | C28: 0.05193959889 | D28: 0.1858507649 | E28: 0.2794693846 | F28: 8 | J28: Reliability | K28: =1/N25 -> 1.25 | L28: =1/N26 -> 2 | M28: =1/N27 -> 2.5 | N28: 1 | O28: 6
A29: Water-Cooled Chiller+ASE | B29: 0.0940945644 | C29: 0.07330336931 | D29: 0.1673979337 | E29: 0.4378988897 | F29: 5 | J29: Maintenance | K29: =1/O25 -> 0.2 | L29: =1/O26 -> 0.5 | M29: =1/O27 -> 0.6666666667 | N29: =1/O28 -> 0.1666666667 | O29: 1
A30: Water-Cooled Chiller+WSE | B30: 0.1327997725 | C30: 0.05016660804 | D30: 0.1829663805 | E30: 0.2741848415 | F30: 9
A31: Water-Cooled Chiller+WSE+ASE | B31: 0.09466929571 | C31: 0.07245218199 | D31: 0.1671214777 | E31: 0.4335300465 | F31: 6 | K31: =K25/(K25+K26+K27+K28+K29) -> 0.30 | L31: =L26/(L25+L26+L27+L28+L29) -> 0.13 | M31: =M27/(M25+M26+M27+M28+M29) -> 0.14 | N31: =N28/(N25+N26+N27+N28+N29) -> 0.35 | O31: =O29/(O25+O26+O27+O28+O29) -> 0.06
A32: Evaporative Cooling +ASE | B32: 0.07020610413 | C32: =SQRT(SUM((M18-$W$10)^2+(N18-$X$10)^2+(O18-$Y$10)^2+(P18-$Z$10)^2+(Q18-$AA$10)^2)) -> 0.1316613024 | D32: 0.2018674065 | E32: 0.6522167429 | F32: 1 | J32: Σparameters' weight | K32: =K31/(K31+L31+M31+N31+O31)*100 -> 30.74 | L32: =L31/(K31+L31+M31+N31+O31)*100 -> 13.46 | M32: =M31/(K31+L31+M31+N31+O31)*100 -> 14.08 | N32: =N31/(K31+L31+M31+N31+O31)*100 -> 35.21 | O32: =O31/(K31+L31+M31+N31+O31)*100 -> 6.51
K33: =SUM(K32:O32) -> 100.00
A35: List of Ranked Cooling Systems | B35: Cooling Eneregy Use (MWh) | C35: Onsite Water Use (acre-ft) | D35: Total Cooling Water (acre-ft) | E35: PUE | F35: Onsite WUE (gal/kWh) | G35: Source WUE (gal/kWh) | H35: Cooling System Availbility (% of the Year)
A36: Evaporative Cooling +ASE | B36: 4359.1 | C36: 145.5027358 | D36: 151.2170364 | E36: 1.195901671 | F36: 0.5410391318 | G36: 1.051689145 | H36: 50
A37: Air-Cooled Chiller+ ASE | B37: 28667.65775 | C37: 7.823192337 | D37: 45.4033382 | E37: 1.479059785 | F37: 0.02908985296 | G37: 0.6606483811 | H37: 100
A38: Pre-Cooled-Air-Cooled Chiller +ASE | B38: 25600.72 | C38: 68.76492306 | D38: 102.3246509 | E38: 1.443334576 | F38: 0.2556963212 | G38: 0.8720001851 | H38: 100
A39: Air-Cooled Chiller | B39: 37470.4 | C39: 0.0300108771 | D39: 49.14958353 | E39: 1.581598484 | F39: 0.0001115928082 | G39: 0.6754541455 | H39: 100
A40: Water-Cooled Chiller+ASE | B40: 22402.9 | C40: 151.3548568 | D40: 180.7225944 | E40: 1.406084786 | F40: 0.5627997295 | G40: 1.163197933 | H40: 100
A41: Water-Cooled Chiller+WSE+ASE | B41: 22402.9 | C41: 151.3548568 | D41: 180.7225944 | E41: 1.406084786 | F41: 0.5627997295 | G41: 1.163197933 | H41: 100
A42: Pre-Cooled-Air-Cooled Chiller | B42: 34408.7 | C42: 59.70163818 | D42: 104.8076589 | E42: 1.545934287 | F42: 0.2219952932 | G42: 0.8821092337 | H42: 100
A43: Water-Cooled Chiller | B43: 29473.5 | C43: 222.8807806 | D43: 261.517297 | E43: 1.488446634 | F43: 0.828762589 | G43: 1.464329302 | H43: 100
A44: Water-Cooled Chiller+WSE | B44: 29072.7 | C44: 221.9804543 | D44: 260.091566 | E44: 1.483777918 | F44: 0.8254148048 | G44: 1.458987976 | H44: 100
A49: IT Load (MW) | B49: 10
A50: Cooling System | B50: Annual Cooling Energy Use (MWh) | C50: Annual IT Energy Use at UPS Outlet (MWh) | D50: Annual IT Energy Use at UPS Inlet (MWh) | E50: Annual Lighting Energy Use (MWh) | F50: Annual Total Energy Use (MWh) | G50: Total Onsite Water Use (kgal) | H50: Total Cooling Water Use (kgal) | I50: Total Source Water Use (kgal) | J50: PUE | K50: WUEOnsite (gal/kWh) | L50: WUESource (gal/kWh) | M50: Cooling System Availbility (% of the Year)
A51: Air-Cooled Chiller | B51: 37,470.40 | C51: 87600.00 | D51: 97333.33 | E51: 973.33 | F51: 138548.03 | G51: 9.78 | H51: 16009.63633 | I51: 59169.78 | J51: 1.58 | K51: 0.00 | L51: 0.6754541455 | M51: 100
A52: Air-Cooled Chiller+ ASE | B52: 28,667.66 | C52: 87600.00 | D52: 97333.33 | E52: 973.33 | F52: 129565.64 | G52: 2548.27 | H52: 14789.36098 | I52: 57872.80 | J52: 1.48 | K52: 0.03 | L52: 0.6606483811 | M52: 100
A53: Pre-Cooled-Air-Cooled Chiller | B53: 34,408.70 | C53: 87600.00 | D53: 97333.33 | E53: 973.33 | F53: 135423.84 | G53: 19446.79 | H53: 34139.30258 | I53: 77272.77 | J53: 1.55 | K53: 0.22 | L53: 0.8821092337 | M53: 100
A54: Pre-Cooled-Air-Cooled Chiller +ASE | B54: 25,600.72 | C54: 87600.00 | D54: 97333.33 | E54: 973.33 | F54: 126436.11 | G54: 22399.00 | H54: 33330.50518 | I54: 76387.22 | J54: 1.44 | K54: 0.26 | L54: 0.8720001851 | M54: 100
A55: Water-Cooled Chiller | B55: 29,473.50 | C55: 87600.00 | D55: 97333.33 | E55: 973.33 | F55: 130387.93 | G55: 72599.60 | H55: 85184.7873 | I55: 128275.25 | J55: 1.49 | K55: 0.83 | L55: 1.464329302 | M55: 100
A56: Water-Cooled Chiller+ASE | B56: 22,402.90 | C56: 87600.00 | D56: 97333.33 | E56: 973.33 | F56: 123173.03 | G56: 49301.26 | H56: 58867.2946 | I56: 101896.14 | J56: 1.41 | K56: 0.56 | L56: 1.163197933 | M56: 100
A57: Water-Cooled Chiller+WSE | B57: 29,072.70 | C57: 87600.00 | D57: 97333.33 | E57: 973.33 | F57: 129978.95 | G57: 72306.34 | H57: 84720.3798 | I57: 127807.35 | J57: 1.48 | K57: 0.83 | L57: 1.458987976 | M57: 100
A58: Water-Cooled Chiller+WSE+ASE | B58: 22,402.90 | C58: 87600.00 | D58: 97333.33 | E58: 973.33 | F58: 123173.03 | G58: 49301.26 | H58: 58867.2946 | I58: 101896.14 | J58: 1.41 | K58: 0.56 | L58: 1.163197933 | M58: 100
A59: Evaporative Cooling +ASE | B59: 4,359.10 | C59: 87600.00 | D59: 97333.33 | E59: 973.33 | F59: 104760.99 | G59: 47395.03 | H59: 49256.36365 | I59: 92127.97 | J59: 1.20 | K59: 0.54 | L59: 1.051689145 | M59: 50
F124: =_xlfn.RANK.EQ(E124,$E$24:$E$32,0) -> 

Sheet CAC Airflow
A2: Airflow Type
A3: Configuration
G4: 0.0
G5: 0.0
G6: 0.0
C7: Parameters Weight Percentage | G7: 0.0 | H7: Normalized Performance Values (NPVs) | M7: Weighted Normalized Values(WNVs) | R7: Ideal Best Value (V-) | W7: Ideal Worst Value (V-) | AC7: Cooling System Availbility (% of the Year)
C8: 30.74 | D8: 13.46 | E8: 14.08 | F8: 35.21 | G8: 6.5
A9: Cooling System | B9: Paramter Unit | C9: Energy Use (MWh) | D9: Onsite Water Use (acre-ft) | E9: Total Cooling Water Use (acre-ft) | F9: Reliability | G9: Maintenance | H9: NPV_Energy | I9: NPV_Onsite Water | J9: NPV_Source Water | K9: NPV_Reliability | L9: NPV_Maintenance | M9: WNV_Energy | N9: WNV_Onsite Water | O9: WNV_Source Water | P9: WNV_Reliability | Q9: WNV_Maintenance | R9: V+_Energy | S9: V+_Onsite Water | T9: V+_Source Water | U9: V+_Reliability | V9: V+_Maintenance | W9: V-_Energy | X9: V-_Onsite Water | Y9: V-_Source Water | Z9: V-_Reliability | AA9: V-_Maintenance
A10: Air-Cooled Chiller | B10: Parameter Unit/MW IT Load | C10: 3,372.82 | D10: 0.00 | E10: 4.42 | F10: 89 | G10: 81 | H10: =C10/SQRT(SUM($C$10^2+$C$11^2+$C$12^2+$C$13^2+$C$14^2+$C$15^2+$C$16^2+$C$17^2+$C$18)) -> 0.5763011891 | I10: =D10/SQRT(SUM($D$10^2+$D$11^2+$D$12^2+$D$13^2+$D$14^2+$D$15^2+$D$16^2+$D$17^2+$D$18^2)) -> 0.0001344900942 | J10: =E10/SQRT(SUM($E$10^2+$E$11^2+$E$12^2+$E$13^2+$E$14^2+$E$15^2+$E$16^2+$E$17^2+$E$18^2)) -> 0.1195683668 | K10: =F10/SQRT(SUM($F$10^2+$F$11^2+$F$12^2+$F$13^2+$F$14^2+$F$15^2+$F$16^2+$F$17^2+$F$18^2)) -> 0.3540277179 | L10: =G10/SQRT(SUM($G$10^2+$G$11^2+$G$12^2+$G$13^2+$G$14^2+$G$15^2+$G$16^2+$G$17^2+$G$18^2)) -> 0.2221213077 | M10: =$C$8/100*H10 -> 0.1771547856 | N10: =$D$8/100*I10 -> 1.809870008e-05 | O10: =$E$8/100*J10 -> 0.01683904436 | P10: =$F$8/100*K10 -> 0.1246460206 | Q10: =$G$8/100*L10 -> 0.01446361564 | R10: =MIN(M10:M18) -> 0.0363810527 | S10: =MIN(N10:N18) -> 1.809870008e-05 | T10: =MIN(O10:O18) -> 0.01591378344 | U10: =MAX(P10:P18) -> 0.1246460206 | V10: =MIN(Q10:Q18) -> 0.0073210894 | W10: =MAX(M10:M18) -> 0.1771547856 | X10: =MAX(N10:N18) -> 0.08173878037 | Y10: =MAX(O10:O18) -> 0.08122362572 | Z10: =MIN(P10:P18) -> 0.09978684234 | AA10: =MAX(Q10:Q18) -> 0.02910579444 | AC10: 100.00
A11: Air-Cooled Chiller+ ASE | B11: Parameter Unit/MW IT Load | C11: 1,940.00 | D11: 1.86 | E11: 4.40 | F11: 83.25 | G11: 100 | H11: =C11/SQRT(SUM($C$10^2+$C$11^2+$C$12^2+$C$13^2+$C$14^2+$C$15^2+$C$16^2+$C$17^2+$C$18)) -> 0.3314805732 | I11: =D11/SQRT(SUM($D$10^2+$D$11^2+$D$12^2+$D$13^2+$D$14^2+$D$15^2+$D$16^2+$D$17^2+$D$18^2)) -> 0.05812370011 | J11: =E11/SQRT(SUM($E$10^2+$E$11^2+$E$12^2+$E$13^2+$E$14^2+$E$15^2+$E$16^2+$E$17^2+$E$18^2)) -> 0.1190273335 | K11: =F11/SQRT(SUM($F$10^2+$F$11^2+$F$12^2+$F$13^2+$F$14^2+$F$15^2+$F$16^2+$F$17^2+$F$18^2)) -> 0.3311551406 | L11: =G11/SQRT(SUM($G$10^2+$G$11^2+$G$12^2+$G$13^2+$G$14^2+$G$15^2+$G$16^2+$G$17^2+$G$18^2)) -> 0.2742238367 | M11: 0.1018970132 | N11: =$D$8/100*I11 -> 0.00782186541 | O11: =$E$8/100*J11 -> 0.01676284959 | P11: =$F$8/100*K11 -> 0.1165930474 | Q11: =$G$8/100*L11 -> 0.01785631561 | AC11: 100.00
A12: Pre-Cooled-Air-Cooled Chiller | B12: Parameter Unit/MW IT Load | C12: 3,146.89 | D12: 5.27 | E12: 9.39 | F12: 88 | G12: 103 | H12: =C12/SQRT(SUM($C$10^2+$C$11^2+$C$12^2+$C$13^2+$C$14^2+$C$15^2+$C$16^2+$C$17^2+$C$18)) -> 0.5376973716 | I12: 0.1647660038 | J12: 0.2540151503 | K12: =F12/SQRT(SUM($F$10^2+$F$11^2+$F$12^2+$F$13^2+$F$14^2+$F$15^2+$F$16^2+$F$17^2+$F$18^2)) -> 0.3500498784 | L12: 0.2824505518 | M12: 0.1652879855 | N12: 0.0221730121 | O12: 0.03577344491 | P12: =$F$8/100*K12 -> 0.1232455035 | Q12: =$G$8/100*L12 -> 0.01839200508 | AC12: 100.00
A13: Pre-Cooled-Air-Cooled Chiller +ASE | B13: Parameter Unit/MW IT Load | C13: 1,744.25 | D13: 6.09 | E13: 8.38 | F13: 82.25 | G13: 122 | H13: 0.2980338416 | I13: 0.1904442288 | J13: =E13/SQRT(SUM($E$10^2+$E$11^2+$E$12^2+$E$13^2+$E$14^2+$E$15^2+$E$16^2+$E$17^2+$E$18^2)) -> 0.2265577086 | K13: 0.3271773011 | L13: 0.3345530807 | M13: 0.09161549953 | N13: 0.02562860112 | O13: 0.03190656029 | P13: 0.1151925303 | Q13: 0.02178470504 | AC13: 100.00
A14: Water-Cooled Chiller | B14: Parameter Unit/MW IT Load | C14: 1,452.67 | D14: 19.42 | E14: 21.32 | F14: 88.5 | G14: 135 | H14: 0.2482123115 | I14: 0.6073947976 | J14: 0.5767415341 | K14: 0.3520387982 | L14: 0.3702021795 | M14: 0.07630037844 | N14: 0.08173878037 | O14: 0.08122362572 | P14: 0.1239457621 | Q14: 0.02410602607 | AC14: 100.00
A15: Water-Cooled Chiller+ASE | B15: Parameter Unit/MW IT Load | C15: 1,018.31 | D15: 9.84 | E15: 11.18 | F15: 82.75 | G15: 154 | H15: =C15/SQRT(SUM($C$10^2+$C$11^2+$C$12^2+$C$13^2+$C$14^2+$C$15^2+$C$16^2+$C$17^2+$C$18)) -> 0.1739948363 | I15: 0.3077633784 | J15: 0.3024376337 | K15: 0.3291662209 | L15: 0.4223047085 | M15: 0.05348595233 | N15: 0.04141656019 | O15: 0.0425928769 | P15: 0.1158927888 | Q15: 0.02749872604 | AC15: 100.00
A16: Water-Cooled Chiller+WSE | B16: Parameter Unit/MW IT Load | C16: 1,407.98 | D16: 19.30 | E16: 21.15 | F16: 86.25 | G16: 144 | H16: 0.2405762976 | I16: 0.6036415857 | J16: 0.5721427507 | K16: 0.3430886592 | L16: 0.3948823248 | M16: 0.07395307044 | N16: 0.08123370037 | O16: 0.08057597017 | P16: 0.1207945986 | Q16: 0.02571309448 | AC16: 100.00
A17: Water-Cooled Chiller+WSE+ASE | B17: Parameter Unit/MW IT Load | C17: 1,018.31 | D17: 9.84 | E17: 11.18 | F17: 81.5 | G17: 163 | H17: 0.1739948363 | I17: 0.3077633784 | J17: 0.3024376337 | K17: 0.3241939215 | L17: 0.4469848538 | M17: 0.05348595233 | N17: 0.04141656019 | O17: 0.0425928769 | P17: 0.1141421425 | Q17: 0.02910579444 | AC17: 100.00
A18: Evaporative Cooling | B18: Parameter Unit/MW IT Load | C18: 692.65 | D18: 3.27 | E18: 4.18 | F18: 71 | G18: 41 | H18: =C18/SQRT(SUM($C$10^2+$C$11^2+$C$12^2+$C$13^2+$C$14^2+$C$15^2+$C$16^2+$C$17^2+$C$18)) -> 0.1183509881 | I18: 0.1022574148 | J18: 0.1129984016 | K18: 0.2834210663 | L18: =G18/SQRT(SUM($G$10^2+$G$11^2+$G$12^2+$G$13^2+$G$14^2+$G$15^2+$G$16^2+$G$17^2+$G$18^2)) -> 0.112431773 | M18: 0.0363810527 | N18: 0.0137610602 | O18: 0.01591378344 | P18: 0.09978684234 | Q18: 0.0073210894 | AC18: 75.00
B20: Σparameters' weight | C20: =C8+D8+E8+F8+G8 -> 100.00
I21: Parameter Weight Percentage calculation based on entered paramters' importance comparison by user
A23: Cooling System | B23: Distanc from Ideal Best (S+) | C23: Distanc from Ideal Worst (S-) | D23: S++S- | E23: Perfomance Score (PS) | F23: Rank of Cooling Systems | J23: Parameters
A24: Air-Cooled Chiller | B24: =SQRT(SUM((M10-$R$10)^2+(N10-$S$10)^2+(O10-$T$10)^2+(P10-$U$10)^2+(Q10-$V$10)^2)) -> 0.1409578507 | C24: =SQRT(SUM((M10-$W$10)^2+(N10-$X$10)^2+(O10-$Y$10)^2+(P10-$Z$10)^2+(Q10-$AA$10)^2)) -> 0.107963032 | D24: =B24+C24 -> 0.2489208827 | E24: =C24/D24 -> 0.4337242855 | F24: =_xlfn.RANK.EQ(E24,$E$24:$E$32,0) -> 8 | I24: Parameters | K24: Energy Usage | L24: Onsite water Use | M24: Total Water Use | N24: Reliability | O24: Maintenance
A25: Air-Cooled Chiller+ ASE | B25: =SQRT(SUM((M11-$R$10)^2+(N11-$S$10)^2+(O11-$T$10)^2+(P11-$U$10)^2+(Q11-$V$10)^2)) -> 0.06730380479 | C25: =SQRT(SUM((M11-$W$10)^2+(N11-$X$10)^2+(O11-$Y$10)^2+(P11-$Z$10)^2+(Q11-$AA$10)^2)) -> 0.1252662508 | D25: 0.1925700556 | E25: 0.6504970381 | F25: =_xlfn.RANK.EQ(E25,$E$24:$E$32,0) -> 4 | J25: Energy Usage | K25: 1 | L25: 3 | M25: 2 | N25: 0.8 | O25: 5
A26: Pre-Cooled-Air-Cooled Chiller | B26: 0.1327658476 | C26: 0.08012312211 | D26: 0.2128889697 | E26: 0.3763610779 | F26: 9 | J26: Onsite water Use | K26: =1/L25 -> 0.3333333333 | L26: 1 | M26: 1 | N26: 0.5 | O26: 2
A27: Pre-Cooled-Air-Cooled Chiller +ASE | B27: 0.06527691413 | C27: 0.1148408821 | D27: 0.1801177962 | E27: 0.6375876481 | F27: 5 | J27: Total Water Use | K27: =1/M25 -> 0.5 | L27: =1/M26 -> 1 | M27: 1 | N27: 0.4 | O27: 1.5
A28: Water-Cooled Chiller | B28: 0.1132228879 | C28: 0.1038280431 | D28: 0.217050931 | E28: 0.4783579717 | F28: 7 | J28: Reliability | K28: =1/N25 -> 1.25 | L28: =1/N26 -> 2 | M28: =1/N27 -> 2.5 | N28: 1 | O28: 6
A29: Water-Cooled Chiller+ASE | B29: 0.05658569006 | C29: 0.136653506 | D29: 0.1932391961 | E29: 0.7071728137 | F29: 2 | J29: Maintenance | K29: =1/O25 -> 0.2 | L29: =1/O26 -> 0.5 | M29: =1/O27 -> 0.6666666667 | N29: =1/O28 -> 0.1666666667 | O29: 1
A30: Water-Cooled Chiller+WSE | B30: 0.1119907504 | C30: 0.1053760163 | D30: 0.2173667667 | E30: 0.4847843943 | F30: 6
A31: Water-Cooled Chiller+WSE+ASE | B31: 0.05747250701 | C31: 0.1364487859 | D31: 0.1939212929 | E31: 0.7036297244 | F31: 3 | K31: =K25/(K25+K26+K27+K28+K29) -> 0.3045685279 | L31: =L26/(L25+L26+L27+L28+L29) -> 0.1333333333 | M31: =M27/(M25+M26+M27+M28+M29) -> 0.1395348837 | N31: =N28/(N25+N26+N27+N28+N29) -> 0.3488372093 | O31: =O29/(O25+O26+O27+O28+O29) -> 0.06451612903
A32: Evaporative Cooling +ASE | B32: 0.0284050653 | C32: =SQRT(SUM((M18-$W$10)^2+(N18-$X$10)^2+(O18-$Y$10)^2+(P18-$Z$10)^2+(Q18-$AA$10)^2)) -> 0.1708161678 | D32: 0.1992212331 | E32: 0.8574194886 | F32: 1 | J32: Σparameters' weight | K32: =K31/(K31+L31+M31+N31+O31)*100 -> 30.73996531 | L32: =L31/(K31+L31+M31+N31+O31)*100 -> 13.4572737 | M32: =M31/(K31+L31+M31+N31+O31)*100 -> 14.08319341 | N32: =N31/(K31+L31+M31+N31+O31)*100 -> 35.20798353 | O32: =O31/(K31+L31+M31+N31+O31)*100 -> 6.51158405
K33: =SUM(K32:O32) -> 100.00000000
A35: List of Ranked Cooling Systems | B35: Cooling Eneregy Use (MWh) | C35: Onsite Water Use (acre-ft) | D35: Total Cooling Water (acre-ft) | E35: PUE | F35: Onsite WUE (gal/kWh) | G35: Source WUE (gal/kWh) | H35: Cooling System Availbility (% of the Year)
A36: Evaporative Cooling +ASE | B36: 69265.2709 | C36: 327.0622353 | D36: 417.8613863 | E36: 1.225808333 | F36: 0.121615217 | G36: 0.6450353751 | H36: 75
A37: Water-Cooled Chiller+ASE | B37: 101831 | C37: 984.3567689 | D37: 1117.846008 | E37: 1.263742506 | F37: 0.366024411 | G37: 0.9056424611 | H37: 100
A38: Water-Cooled Chiller+WSE+ASE | B38: 101831 | C38: 984.3567689 | D38: 1117.846008 | E38: 1.263742506 | F38: 0.366024411 | G38: 0.9056424611 | H38: 100
A39: Air-Cooled Chiller+ ASE | B39: 194000 | C39: 185.9040472 | D39: 440.2167072 | E39: 1.37110552 | F39: 0.06912678567 | G39: 0.6545888426 | H39: 100
A40: Pre-Cooled-Air-Cooled Chiller +ASE | B40: 174425.2 | C40: 609.1207689 | D40: 837.7730193 | E40: 1.348303824 | F40: 0.2264962031 | G40: 0.8022219359 | H40: 100
A41: Water-Cooled Chiller+WSE | B41: 140798 | C41: 1930.69976 | D41: 2115.27045 | E41: 1.309133197 | F41: 0.7179137329 | G41: 1.276913608 | H41: 100
A42: Water-Cooled Chiller | B42: 145267 | C42: 1942.704111 | D42: 2133.133169 | E42: 1.314338909 | F42: 0.7223774452 | G42: 1.283600159 | H42: 100
A43: Air-Cooled Chiller | B43: 337282 | C43: 0.4301559051 | D43: 442.5697569 | E43: 1.538007486 | F43: 0.0001599496918 | G43: 0.6568891463 | H43: 100
A44: Pre-Cooled-Air-Cooled Chiller | B44: 314689 | C44: 526.9910019 | D44: 939.5136651 | E44: 1.511690041 | F44: 0.1959569712 | G44: 0.8414486189 | H44: 100
A49: IT Load (MW) | B49: 100
A50: Cooling System | B50: Annual Cooling Energy Use (MWh) | C50: Annual IT Energy Use at UPS Outlet (MWh) | D50: Annual IT Energy Use at UPS Inlet (MWh) | E50: Annual Lighting Energy Use (MWh) | F50: Annual Total Energy Use (MWh) | G50: Total Onsite Water Use (kgal) | H50: Total Cooling Water Use (kgal) | I50: Total Source Water Use (kgal) | J50: PUE | K50: WUEOnsite (gal/kWh) | L50: WUESource (gal/kWh) | M50: Cooling System Availbility (% of the Year)
A51: Air-Cooled Chiller | B51: 337,282.00 | C51: 876000.00 | D51: 973333.33 | E51: 9733.33 | F51: 1347294.56 | G51: 140.12 | H51: 144159.5299 | I51: 575434.89 | J51: 1.54 | K51: 0.00 | L51: 0.6568891463 | M51: 100
A52: Air-Cooled Chiller+ ASE | B52: 194,000.00 | C52: 876000.00 | D52: 973333.33 | E52: 9733.33 | F52: 1201088.44 | G52: 60555.06 | H52: 143393.0643 | I52: 573419.83 | J52: 1.37 | K52: 0.07 | L52: 0.6545888426 | M52: 100
A53: Pre-Cooled-Air-Cooled Chiller | B53: 314,689.00 | C53: 876000.00 | D53: 973333.33 | E53: 9733.33 | F53: 1324240.48 | G53: 171658.31 | H53: 306030.5098 | I53: 737108.99 | J53: 1.51 | K53: 0.20 | L53: 0.8414486189 | M53: 100
A54: Pre-Cooled-Air-Cooled Chiller +ASE | B54: 174,425.20 | C54: 876000.00 | D54: 973333.33 | E54: 9733.33 | F54: 1181114.15 | G54: 198410.67 | H54: 272890.2343 | I54: 702746.42 | J54: 1.35 | K54: 0.23 | L54: 0.8022219359 | M54: 100
A55: Water-Cooled Chiller | B55: 145,267.00 | C55: 876000.00 | D55: 973333.33 | E55: 9733.33 | F55: 1151360.88 | G55: 632802.64 | H55: 694831.651 | I55: 1124433.74 | J55: 1.31 | K55: 0.72 | L55: 1.283600159 | M55: 100
A56: Water-Cooled Chiller+ASE | B56: 101,831.00 | C56: 876000.00 | D56: 973333.33 | E56: 9733.33 | F56: 1107038.44 | G56: 320637.38 | H56: 364119.221 | I56: 793342.80 | J56: 1.26 | K56: 0.37 | L56: 0.9056424611 | M56: 100
A57: Water-Cooled Chiller+WSE | B57: 140,798.00 | C57: 876000.00 | D57: 973333.33 | E57: 9733.33 | F57: 1146800.68 | G57: 628892.43 | H57: 689013.176 | I57: 1118576.32 | J57: 1.31 | K57: 0.72 | L57: 1.276913608 | M57: 100
A58: Water-Cooled Chiller+WSE+ASE | B58: 101,831.00 | C58: 876000.00 | D58: 973333.33 | E58: 9733.33 | F58: 1107038.44 | G58: 320637.38 | H58: 364119.221 | I58: 793342.80 | J58: 1.26 | K58: 0.37 | L58: 0.9056424611 | M58: 100
A59: Evaporative Cooling +ASE | B59: 69,265.27 | C59: 876000.00 | D59: 973333.33 | E59: 9733.33 | F59: 1073808.10 | G59: 106534.93 | H59: 136111.2007 | I59: 565050.99 | J59: 1.23 | K59: 0.12 | L59: 0.6450353751 | M59: 75
F124: =_xlfn.RANK.EQ(E124,$E$24:$E$32,0) -> 

Sheet HAC-VED Airflow
A2: Airflow Type
A3: Configuration
C7: Parameters Weight Percentage | H7: Normalized Performance Values (NPVs) | M7: Weighted Normalized Values(WNVs) | R7: Ideal Best Value (V-) | W7: Ideal Worst Value (V-) | AC7: Cooling System Availbility (% of the Year)
C8: 30.74 | D8: 13.46 | E8: 14.08 | F8: 35.21 | G8: 6.51
A9: Cooling System | B9: Paramter Unit | C9: Energy Use (MWh) | D9: Onsite Water Use (acre-ft) | E9: Total Cooling Water Use (acre-ft) | F9: Reliability | G9: Maintenance | H9: NPV_Energy | I9: NPV_Onsite Water | J9: NPV_Source Water | K9: NPV_Reliability | L9: NPV_Maintenance | M9: WNV_Energy | N9: WNV_Onsite Water | O9: WNV_Source Water | P9: WNV_Reliability | Q9: WNV_Maintenance | R9: V+_Energy | S9: V+_Onsite Water | T9: V+_Source Water | U9: V+_Reliability | V9: V+_Maintenance | W9: V-_Energy | X9: V-_Onsite Water | Y9: V-_Source Water | Z9: V-_Reliability | AA9: V-_Maintenance
A10: Air-Cooled Chiller | B10: Parameter Unit/MW IT Load | C10: 3,079.35 | D10: 0.01 | E10: 4.04 | F10: 89 | G10: 81 | H10: =C10/SQRT(SUM($C$10^2+$C$11^2+$C$12^2+$C$13^2+$C$14^2+$C$15^2+$C$16^2+$C$17^2+$C$18)) -> 0.6009131384 | I10: =D10/SQRT(SUM($D$10^2+$D$11^2+$D$12^2+$D$13^2+$D$14^2+$D$15^2+$D$16^2+$D$17^2+$D$18^2)) -> 0.0002289366534 | J10: =E10/SQRT(SUM($E$10^2+$E$11^2+$E$12^2+$E$13^2+$E$14^2+$E$15^2+$E$16^2+$E$17^2+$E$18^2)) -> 0.1007590672 | K10: =F10/SQRT(SUM($F$10^2+$F$11^2+$F$12^2+$F$13^2+$F$14^2+$F$15^2+$F$16^2+$F$17^2+$F$18^2)) -> 0.3496120375 | L10: =G10/SQRT(SUM($G$10^2+$G$11^2+$G$12^2+$G$13^2+$G$14^2+$G$15^2+$G$16^2+$G$17^2+$G$18^2)) -> 0.2221213077 | M10: =$C$8/100*H10 -> 0.1847204903 | N10: =$D$8/100*I10 -> 3.080863205e-05 | O10: =$E$8/100*J10 -> 0.01419009431 | P10: =$F$8/100*K10 -> 0.1230913486 | Q10: =$G$8/100*L10 -> 0.01446361564 | R10: =MIN(M10:M18) -> 0.04187165665 | S10: =MIN(N10:N18) -> 3.080863205e-05 | T10: =MIN(O10:O18) -> 0.01419009431 | U10: =MAX(P10:P18) -> 0.1230913486 | V10: =MIN(Q10:Q18) -> 0.0073210894 | W10: =MAX(M10:M18) -> 0.1847204903 | X10: =MAX(N10:N18) -> 0.08498781212 | Y10: =MAX(O10:O18) -> 0.07425212716 | Z10: =MIN(P10:P18) -> 0.1127184821 | AA10: =MAX(Q10:Q18) -> 0.02910579444 | AC10: 100.00
A11: Air-Cooled Chiller+ ASE | B11: Parameter Unit/MW IT Load | C11: 1,328.13 | D11: 3.06 | E11: 4.80 | F11: 83.25 | G11: 100 | H11: =C11/SQRT(SUM($C$10^2+$C$11^2+$C$12^2+$C$13^2+$C$14^2+$C$15^2+$C$16^2+$C$17^2+$C$18)) -> 0.2591750748 | I11: =D11/SQRT(SUM($D$10^2+$D$11^2+$D$12^2+$D$13^2+$D$14^2+$D$15^2+$D$16^2+$D$17^2+$D$18^2)) -> 0.1001672276 | J11: =E11/SQRT(SUM($E$10^2+$E$11^2+$E$12^2+$E$13^2+$E$14^2+$E$15^2+$E$16^2+$E$17^2+$E$18^2)) -> 0.1197885643 | K11: =F11/SQRT(SUM($F$10^2+$F$11^2+$F$12^2+$F$13^2+$F$14^2+$F$15^2+$F$16^2+$F$17^2+$F$18^2)) -> 0.327024743 | L11: =G11/SQRT(SUM($G$10^2+$G$11^2+$G$12^2+$G$13^2+$G$14^2+$G$15^2+$G$16^2+$G$17^2+$G$18^2)) -> 0.2742238367 | M11: =$C$8/100*H11 -> 0.07967032809 | N11: =$D$8/100*I11 -> 0.01347977797 | O11: =$E$8/100*J11 -> 0.01687005519 | P11: =$F$8/100*K11 -> 0.1151388176 | Q11: =$G$8/100*L11 -> 0.01785631561 | AC11: 100.00
A12: Pre-Cooled-Air-Cooled Chiller | B12: Parameter Unit/MW IT Load | C12: 2,908.01 | D12: 5.27 | E12: 9.081 | F12: 88 | G12: 103 | H12: =C12/SQRT(SUM($C$10^2+$C$11^2+$C$12^2+$C$13^2+$C$14^2+$C$15^2+$C$16^2+$C$17^2+$C$18)) -> 0.5674775237 | I12: 0.1723893 | J12: 0.2264834379 | K12: =F12/SQRT(SUM($F$10^2+$F$11^2+$F$12^2+$F$13^2+$F$14^2+$F$15^2+$F$16^2+$F$17^2+$F$18^2)) -> 0.3456838124 | L12: 0.2824505518 | M12: 0.1744423939 | N12: 0.02319889993 | O12: 0.0318961006 | P12: =$F$8/100*K12 -> 0.1217082997 | Q12: =$G$8/100*L12 -> 0.01839200508 | AC12: 100.00
A13: Pre-Cooled-Air-Cooled Chiller +ASE | B13: Parameter Unit/MW IT Load | C13: 1,223.23 | D13: 5.55 | E13: 7.16 | F13: 82.25 | G13: 122 | H13: 0.2387042604 | I13: 0.1816448818 | J13: 0.1784981792 | K13: 0.3230965178 | L13: 0.3345530807 | M13: 0.07337760684 | N13: 0.02444444891 | O13: 0.02513824381 | P13: 0.1137557688 | Q13: 0.02178470504 | AC13: 100.00
A14: Water-Cooled Chiller | B14: Parameter Unit/MW IT Load | C14: 1,398.77 | D14: 19.31 | E14: 21.14 | F14: 88.5 | G14: 135 | H14: 0.2729599658 | I14: 0.6315381109 | J14: 0.5272392773 | K14: 0.3476479249 | L14: 0.3702021795 | M14: 0.0839077988 | N14: 0.08498781212 | O14: 0.07425212716 | P14: 0.1223998241 | Q14: 0.02410602607 | AC14: 100.00
A15: Water-Cooled Chiller+ASE | B15: Parameter Unit/MW IT Load | C15: 864.10 | D15: 7.46 | E15: 8.59 | F15: 82.75 | G15: 154 | H15: =C15/SQRT(SUM($C$10^2+$C$11^2+$C$12^2+$C$13^2+$C$14^2+$C$15^2+$C$16^2+$C$17^2+$C$18)) -> 0.1686229376 | I15: 0.243981062 | J15: 0.2142377196 | K15: 0.3250606304 | L15: 0.4223047085 | M15: 0.05183463253 | N15: 0.0328331993 | O15: 0.03017151241 | P15: 0.1144472932 | Q15: 0.02749872604 | AC15: 100.00
A16: Water-Cooled Chiller+WSE | B16: Parameter Unit/MW IT Load | C16: 1,268.97 | D16: 19.03 | E16: 20.69 | F16: 86.25 | G16: 144 | H16: 0.2476304237 | I16: 0.6223806448 | J16: 0.5160161139 | K16: 0.3388094184 | L16: 0.3948823248 | M16: 0.07612150635 | N16: 0.08375546684 | O16: 0.07267154734 | P16: 0.1192879642 | Q16: 0.02571309448 | AC16: 100.00
A17: Water-Cooled Chiller+WSE+ASE | B17: Parameter Unit/MW IT Load | C17: 864.09 | D17: 7.46 | E17: 8.59 | F17: 81.5 | G17: 163 | H17: 0.168620791 | I17: 0.243981062 | J17: 0.2142377196 | K17: 0.320150349 | L17: 0.4469848538 | M17: 0.05183397267 | N17: 0.0328331993 | O17: 0.03017151241 | P17: 0.1127184821 | Q17: 0.02910579444 | AC17: 100.00
A18: Evaporative Cooling +ASE | B18: Parameter Unit/MW IT Load | C18: 698.01 | D18: 4.54 | E18: 20.30 | F18: 82 | G18: 41 | H18: =C18/SQRT(SUM($C$10^2+$C$11^2+$C$12^2+$C$13^2+$C$14^2+$C$15^2+$C$16^2+$C$17^2+$C$18)) -> 0.1362124395 | I18: 0.1483306121 | J18: 0.5062533717 | K18: 0.3211324052 | L18: =G18/SQRT(SUM($G$10^2+$G$11^2+$G$12^2+$G$13^2+$G$14^2+$G$15^2+$G$16^2+$G$17^2+$G$18^2)) -> 0.112431773 | M18: 0.04187165665 | N18: 0.01996125646 | O18: 0.07129664148 | P18: 0.1130642443 | Q18: 0.0073210894 | AC18: 96.00
B20: Σparameters' weight | C20: =C8+D8+E8+F8+G8 -> 100.00
I21: Parameter Weight Percentage calculation based on entered paramters' importance comparison by user
A23: Cooling System | B23: Distanc from Ideal Best (S+) | C23: Distanc from Ideal Worst (S-) | D23: S++S- | E23: Perfomance Score (PS) | F23: Rank of Cooling Systems | J23: Parameters
A24: Air-Cooled Chiller | B24: =SQRT(SUM((M10-$R$10)^2+(N10-$S$10)^2+(O10-$T$10)^2+(P10-$U$10)^2+(Q10-$V$10)^2)) -> 0.1430272875 | C24: =SQRT(SUM((M10-$W$10)^2+(N10-$X$10)^2+(O10-$Y$10)^2+(P10-$Z$10)^2+(Q10-$AA$10)^2)) -> 0.1055799696 | D24: =B24+C24 -> 0.2486072571 | E24: =C24/D24 -> 0.4246857911 | F24: =_xlfn.RANK.EQ(E24,$E$24:$E$32,0) -> 8 | I24: Parameters | K24: Energy Usage | L24: Onsite water Use | M24: Total Water Use | N24: Reliability | O24: Maintenance
A25: Air-Cooled Chiller+ ASE | B25: =SQRT(SUM((M11-$R$10)^2+(N11-$S$10)^2+(O11-$T$10)^2+(P11-$U$10)^2+(Q11-$V$10)^2)) -> 0.04232056555 | C25: =SQRT(SUM((M11-$W$10)^2+(N11-$X$10)^2+(O11-$Y$10)^2+(P11-$Z$10)^2+(Q11-$AA$10)^2)) -> 0.1399072783 | D25: 0.1822278438 | E25: 0.7677601586 | F25: =_xlfn.RANK.EQ(E25,$E$24:$E$32,0) -> 3 | J25: Energy Usage | K25: 1 | L25: 3 | M25: 2 | N25: 0.8 | O25: 5
A26: Pre-Cooled-Air-Cooled Chiller | B26: 0.1361974357 | C26: 0.07689697018 | D26: 0.2130944059 | E26: 0.3608586995 | F26: 9 | J26: Onsite water Use | K26: =1/L25 -> 0.3333333333 | L26: 1 | M26: 1 | N26: 0.5 | O26: 2
A27: Pre-Cooled-Air-Cooled Chiller +ASE | B27: 0.04477568463 | C27: 0.136123416 | D27: 0.1808991006 | E27: 0.752482547 | F27: 4 | J27: Total Water Use | K27: =1/M25 -> 0.5 | L27: =1/M26 -> 1 | M27: 1 | N27: 0.4 | O27: 1.5
A28: Water-Cooled Chiller | B28: 0.1134653682 | C28: 0.1013998266 | D28: 0.2148651948 | E28: 0.4719229966 | F28: 7 | J28: Reliability | K28: =1/N25 -> 1.25 | L28: =1/N26 -> 2 | M28: =1/N27 -> 2.5 | N28: 1 | O28: 6
A29: Water-Cooled Chiller+ASE | B29: 0.0437323697 | C29: 0.149423649 | D29: 0.1931560187 | E29: 0.7735904375 | F29: 1 | J29: Maintenance | K29: =1/O25 -> 0.2 | L29: =1/O26 -> 0.5 | M29: =1/O27 -> 0.6666666667 | N29: =1/O28 -> 0.1666666667 | O29: 1
A30: Water-Cooled Chiller+WSE | B30: 0.1093420437 | C30: 0.1088688419 | D30: 0.2182108856 | E30: 0.4989157235 | F30: 6
A31: Water-Cooled Chiller+WSE+ASE | B31: 0.04486446289 | C31: 0.1494055916 | D31: 0.1942700545 | E31: 0.7690613563 | F31: 2 | K31: =K25/(K25+K26+K27+K28+K29) -> 0.3045685279 | L31: =L26/(L25+L26+L27+L28+L29) -> 0.1333333333 | M31: =M27/(M25+M26+M27+M28+M29) -> 0.1395348837 | N31: =N28/(N25+N26+N27+N28+N29) -> 0.3488372093 | O31: =O29/(O25+O26+O27+O28+O29) -> 0.06451612903
A32: Evaporative Cooling +ASE | B32: 0.06131005872 | C32: =SQRT(SUM((M18-$W$10)^2+(N18-$X$10)^2+(O18-$Y$10)^2+(P18-$Z$10)^2+(Q18-$AA$10)^2)) -> 0.1584855515 | D32: 0.2197956102 | E32: 0.7210587661 | F32: 5 | J32: Σparameters' weight | K32: =K31/(K31+L31+M31+N31+O31)*100 -> 30.73996531 | L32: =L31/(K31+L31+M31+N31+O31)*100 -> 13.4572737 | M32: =M31/(K31+L31+M31+N31+O31)*100 -> 14.08319341 | N32: =N31/(K31+L31+M31+N31+O31)*100 -> 35.20798353 | O32: =O31/(K31+L31+M31+N31+O31)*100 -> 6.51158405
K33: =SUM(K32:O32) -> 100.00000000
A35: List of Ranked Cooling Systems | B35: Cooling Eneregy Use (MWh) | C35: Onsite Water Use (acre-ft) | D35: Total Cooling Water (acre-ft) | E35: PUE | F35: Onsite WUE (gal/kWh) | G35: Source WUE (gal/kWh) | H35: Cooling System Availbility (% of the Year)
A36: Water-Cooled Chiller+ASE | B36: 86410 | C36: 746.2704772 | D36: 859.5444821 | E36: 1.245779362 | F36: 0.2774941164 | G36: 0.809441904 | H36: 100
A37: Water-Cooled Chiller+WSE+ASE | B37: 86408.9 | C37: 746.2704772 | D37: 859.5430401 | E37: 1.245778081 | F37: 0.2774941164 | G37: 0.8094413569 | H37: 100
A38: Air-Cooled Chiller+ ASE | B38: 132813 | C38: 306.3837992 | D38: 480.4870328 | E38: 1.299831873 | F38: 0.1139261223 | G38: 0.6689543322 | H38: 100
A39: Pre-Cooled-Air-Cooled Chiller +ASE | B39: 122322.8312 | C39: 555.6013714 | D39: 715.9531476 | E39: 1.287612406 | F39: 0.2065954856 | G39: 0.7564059828 | H39: 100
A40: Evaporative Cooling +ASE | B40: 69801.3987 | C40: 453.7022496 | D40: 545.2042052 | E40: 1.226432841 | F40: 0.168705193 | G40: 0.6923920161 | H40: 96
A41: Water-Cooled Chiller+WSE | B41: 126897 | C41: 1903.689971 | D41: 2070.037979 | E41: 1.292940624 | F41: 0.7078703801 | G41: 1.259956026 | H41: 100
A42: Water-Cooled Chiller | B42: 139877 | C42: 1931.700123 | D42: 2115.063483 | E42: 1.30806037 | F42: 0.7182857089 | G42: 1.276827487 | H42: 100
A43: Air-Cooled Chiller | B43: 307935 | C43: 0.700253799 | D43: 404.3691659 | E43: 1.503822648 | F43: 0.0002603832192 | G43: 0.6423926538 | H43: 100
A44: Pre-Cooled-Air-Cooled Chiller | B44: 290801.0827 | C44: 527.2911106 | D44: 908.4993419 | E44: 1.483864213 | F44: 0.196068564 | G44: 0.8296785829 | H44: 100
A49: IT Load (MW) | B49: 100
A50: Cooling System | B50: Annual Cooling Energy Use (MWh) | C50: Annual IT Energy Use at UPS Outlet (MWh) | D50: Annual IT Energy Use at UPS Inlet (MWh) | E50: Annual Lighting Energy Use (MWh) | F50: Annual Total Energy Use (MWh) | G50: Total Onsite Water Use (kgal) | H50: Total Cooling Water Use (kgal) | I50: Total Source Water Use (kgal) | J50: PUE | K50: WUEOnsite (gal/kWh) | L50: WUESource (gal/kWh) | M50: Cooling System Availbility (% of the Year)
A51: Air-Cooled Chiller | B51: 307,935.00 | C51: 876000.00 | D51: 973333.33 | E51: 9733.33 | F51: 1317348.64 | G51: 228.10 | H51: 131716.3407 | I51: 562735.96 | J51: 1.50 | K51: 0.00 | L51: 0.6423926538 | M51: 100
A52: Air-Cooled Chiller+ ASE | B52: 132,813.00 | C52: 876000.00 | D52: 973333.33 | E52: 9733.33 | F52: 1138652.72 | G52: 99799.28 | H52: 156510.4341 | I52: 586004.00 | J52: 1.30 | K52: 0.11 | L52: 0.6689543322 | M52: 100
A53: Pre-Cooled-Air-Cooled Chiller | B53: 290,801.08 | C53: 876000.00 | D53: 973333.33 | E53: 9733.33 | F53: 1299865.05 | G53: 171756.06 | H53: 295928.1244 | I53: 726798.44 | J53: 1.48 | K53: 0.20 | L53: 0.8296785829 | M53: 100
A54: Pre-Cooled-Air-Cooled Chiller +ASE | B54: 122,322.83 | C54: 876000.00 | D54: 973333.33 | E54: 9733.33 | F54: 1127948.47 | G54: 180977.65 | H54: 233209.4943 | I54: 662611.64 | J54: 1.29 | K54: 0.21 | L54: 0.7564059828 | M54: 100
A55: Water-Cooled Chiller | B55: 139,877.00 | C55: 876000.00 | D55: 973333.33 | E55: 9733.33 | F55: 1145860.88 | G55: 629218.28 | H55: 688945.76 | I55: 1118500.88 | J55: 1.31 | K55: 0.72 | L55: 1.276827487 | M55: 100
A56: Water-Cooled Chiller+ASE | B56: 86,410.00 | C56: 876000.00 | D56: 973333.33 | E56: 9733.33 | F56: 1091302.72 | G56: 243084.85 | H56: 279981.916 | I56: 709071.11 | J56: 1.25 | K56: 0.28 | L56: 0.809441904 | M56: 100
A57: Water-Cooled Chiller+WSE | B57: 126,897.00 | C57: 876000.00 | D57: 973333.33 | E57: 9733.33 | F57: 1132615.99 | G57: 620094.45 | H57: 674279.472 | I57: 1103721.48 | J57: 1.29 | K57: 0.71 | L57: 1.259956026 | M57: 100
A58: Water-Cooled Chiller+WSE+ASE | B58: 86,408.90 | C58: 876000.00 | D58: 973333.33 | E58: 9733.33 | F58: 1091301.60 | G58: 243084.85 | H58: 279981.4463 | I58: 709070.63 | J58: 1.25 | K58: 0.28 | L58: 0.8094413569 | M58: 100
A59: Evaporative Cooling +ASE | B59: 69,801.40 | C59: 876000.00 | D59: 973333.33 | E59: 9733.33 | F59: 1074355.17 | G59: 147785.75 | H59: 177590.9463 | I59: 606535.41 | J59: 1.23 | K59: 0.17 | L59: 0.6923920161 | M59: 96
F124: =_xlfn.RANK.EQ(E124,$E$24:$E$32,0) -> 

Sheet CAC and HAC-VED Airflow
A2: Airflow Type
A3: Configuration
C7: Parameters Weight Percentage | H7: Normalized Performance Values (NPVs) | M7: Weighted Normalized Values(WNVs) | R7: Ideal Best Value (V-) | W7: Ideal Worst Value (V-) | AC7: Cooling System Availbility (% of the Year)
C8: 20 | D8: 30 | E8: 10 | F8: 30 | G8: 10
A9: Cooling System | B9: Paramter Unit | C9: Energy Use (MWh) | D9: Onsite Water Use (acre-ft) | E9: Total Cooling Water Use (acre-ft) | F9: Reliability | G9: Maintenance | H9: NPV_Energy | I9: NPV_Onsite Water | J9: NPV_Source Water | K9: NPV_Reliability | L9: NPV_Maintenance | M9: WNV_Energy | N9: WNV_Onsite Water | O9: WNV_Source Water | P9: WNV_Reliability | Q9: WNV_Maintenance | R9: V+_Energy | S9: V+_Onsite Water | T9: V+_Source Water | U9: V+_Reliability | V9: V+_Maintenance | W9: V-_Energy | X9: V-_Onsite Water | Y9: V-_Source Water | Z9: V-_Reliability | AA9: V-_Maintenance
A10: Air-Cooled Chiller | B10: Parameter Unit/MW IT Load | C10: 2,963.59 | D10: 0.01 | E10: 3.89 | F10: 89 | G10: 81 | H10: =C10/SQRT(SUM($C$10^2+$C$11^2+$C$12^2+$C$13^2+$C$14^2+$C$15^2+$C$16^2+$C$17^2+$C$18)) -> 0.6173095929 | I10: =D10/SQRT(SUM($D$10^2+$D$11^2+$D$12^2+$D$13^2+$D$14^2+$D$15^2+$D$16^2+$D$17^2+$D$18^2)) -> 0.0001817999146 | J10: =E10/SQRT(SUM($E$10^2+$E$11^2+$E$12^2+$E$13^2+$E$14^2+$E$15^2+$E$16^2+$E$17^2+$E$18^2)) -> 0.1026009696 | K10: =F10/SQRT(SUM($F$10^2+$F$11^2+$F$12^2+$F$13^2+$F$14^2+$F$15^2+$F$16^2+$F$17^2+$F$18^2)) -> 0.3491691543 | L10: =G10/SQRT(SUM($G$10^2+$G$11^2+$G$12^2+$G$13^2+$G$14^2+$G$15^2+$G$16^2+$G$17^2+$G$18^2)) -> 0.2221213077 | M10: =$C$8/100*H10 -> 0.1234619186 | N10: =$D$8/100*I10 -> 5.453997438e-05 | O10: =$E$8/100*J10 -> 0.01026009696 | P10: =$F$8/100*K10 -> 0.1047507463 | Q10: =$G$8/100*L10 -> 0.02221213077 | R10: =MIN(M10:M18) -> 0.02520640512 | S10: =MIN(N10:N18) -> 5.453997438e-05 | T10: =MIN(O10:O18) -> 0.01026009696 | U10: =MAX(P10:P18) -> 0.1047507463 | V10: =MIN(Q10:Q18) -> 0.0112431773 | W10: =MAX(M10:M18) -> 0.1234619186 | X10: =MAX(N10:N18) -> 0.1671386312 | Y10: =MAX(O10:O18) -> 0.05417542198 | Z10: =MIN(P10:P18) -> 0.09592343622 | AA10: =MAX(Q10:Q18) -> 0.04469848538 | AC10: 100.00
A11: Air-Cooled Chiller+ ASE | B11: Parameter Unit/MW IT Load | C11: 1,164.81 | D11: 3.08 | E11: 4.61 | F11: 83.25 | G11: 100 | H11: =C11/SQRT(SUM($C$10^2+$C$11^2+$C$12^2+$C$13^2+$C$14^2+$C$15^2+$C$16^2+$C$17^2+$C$18)) -> 0.2426280329 | I11: =D11/SQRT(SUM($D$10^2+$D$11^2+$D$12^2+$D$13^2+$D$14^2+$D$15^2+$D$16^2+$D$17^2+$D$18^2)) -> 0.09028375569 | J11: =E11/SQRT(SUM($E$10^2+$E$11^2+$E$12^2+$E$13^2+$E$14^2+$E$15^2+$E$16^2+$E$17^2+$E$18^2)) -> 0.1214595025 | K11: =F11/SQRT(SUM($F$10^2+$F$11^2+$F$12^2+$F$13^2+$F$14^2+$F$15^2+$F$16^2+$F$17^2+$F$18^2)) -> 0.326610473 | L11: =G11/SQRT(SUM($G$10^2+$G$11^2+$G$12^2+$G$13^2+$G$14^2+$G$15^2+$G$16^2+$G$17^2+$G$18^2)) -> 0.2742238367 | M11: 0.04852560659 | N11: =$D$8/100*I11 -> 0.02708512671 | O11: =$E$8/100*J11 -> 0.01214595025 | P11: =$F$8/100*K11 -> 0.09798314191 | Q11: =$G$8/100*L11 -> 0.02742238367 | AC11: 100.00
A12: Pre-Cooled-Air-Cooled Chiller | B12: Parameter Unit/MW IT Load | C12: 2,798.22 | D12: 5.27 | E12: 8.94 | F12: 88 | G12: 103 | H12: =C12/SQRT(SUM($C$10^2+$C$11^2+$C$12^2+$C$13^2+$C$14^2+$C$15^2+$C$16^2+$C$17^2+$C$18)) -> 0.5828622316 | I12: 0.1545299274 | J12: 0.2357184743 | K12: =F12/SQRT(SUM($F$10^2+$F$11^2+$F$12^2+$F$13^2+$F$14^2+$F$15^2+$F$16^2+$F$17^2+$F$18^2)) -> 0.3452459054 | L12: 0.2824505518 | M12: 0.1165724463 | N12: 0.04635897822 | O12: 0.02357184743 | P12: =$F$8/100*K12 -> 0.1035737716 | Q12: =$G$8/100*L12 -> 0.02824505518 | AC12: 100.00
A13: Pre-Cooled-Air-Cooled Chiller +ASE | B13: Parameter Unit/MW IT Load | C13: 1,074.72 | D13: 5.24 | E13: 6.65 | F13: 82.25 | G13: 122 | H13: 0.2238612371 | I13: 0.1535916053 | J13: =E13/SQRT(SUM($E$10^2+$E$11^2+$E$12^2+$E$13^2+$E$14^2+$E$15^2+$E$16^2+$E$17^2+$E$18^2)) -> 0.1753975444 | K13: 0.3226872241 | L13: 0.3345530807 | M13: 0.04477224743 | N13: 0.04607748158 | O13: 0.01753975444 | P13: 0.09680616723 | Q13: 0.03345530807 | AC13: 100.00
A14: Water-Cooled Chiller | B14: Parameter Unit/MW IT Load | C14: 1,173.66 | D14: 19.00 | E14: 20.54 | F14: 88.5 | G14: 135 | H14: 0.2444707642 | I14: 0.5571287705 | J14: 0.5417542198 | K14: 0.3472075299 | L14: 0.3702021795 | M14: 0.04889415285 | N14: 0.1671386312 | O14: 0.05417542198 | P14: 0.104162259 | Q14: 0.03702021795 | AC14: 100.00
A15: Water-Cooled Chiller+ASE | B15: Parameter Unit/MW IT Load | C15: 764.07 | D15: 6.94 | E15: 7.94 | F15: 82.75 | G15: 154 | H15: =C15/SQRT(SUM($C$10^2+$C$11^2+$C$12^2+$C$13^2+$C$14^2+$C$15^2+$C$16^2+$C$17^2+$C$18)) -> 0.1591540794 | I15: 0.2034986141 | J15: 0.2094220304 | K15: 0.3246488486 | L15: 0.4223047085 | M15: 0.03183081588 | N15: 0.06104958422 | O15: 0.02094220304 | P15: 0.09739465457 | Q15: 0.04223047085 | AC15: 100.00
A16: Water-Cooled Chiller+WSE | B16: Parameter Unit/MW IT Load | C16: 1,173.66 | D16: 19.00 | E16: 20.54 | F16: 86.25 | G16: 144 | H16: 0.2444707642 | I16: 0.5571287705 | J16: 0.5417542198 | K16: 0.3383802198 | L16: 0.3948823248 | M16: 0.04889415285 | N16: 0.1671386312 | O16: 0.05417542198 | P16: 0.1015140659 | Q16: 0.03948823248 | AC16: 100.00
A17: Water-Cooled Chiller+WSE+ASE | B17: Parameter Unit/MW IT Load | C17: 764.07 | D17: 6.94 | E17: 7.94 | F17: 81.5 | G17: 163 | H17: 0.1591542877 | I17: 0.2034986141 | J17: 0.2094220304 | K17: 0.3197447874 | L17: 0.4469848538 | M17: 0.03183085754 | N17: 0.06104958422 | O17: 0.02094220304 | P17: 0.09592343622 | Q17: 0.04469848538 | AC17: 100.00
A18: Evaporative Cooling +ASE | B18: Parameter Unit/MW IT Load | C18: 605.06 | D18: 16.73 | E18: 17.53 | F18: 83 | G18: 41 | H18: =C18/SQRT(SUM($C$10^2+$C$11^2+$C$12^2+$C$13^2+$C$14^2+$C$15^2+$C$16^2+$C$17^2+$C$18)) -> 0.1260320256 | I18: 0.490683834 | J18: 0.46225825 | K18: 0.3246488486 | L18: =G18/SQRT(SUM($G$10^2+$G$11^2+$G$12^2+$G$13^2+$G$14^2+$G$15^2+$G$16^2+$G$17^2+$G$18^2)) -> 0.112431773 | M18: 0.02520640512 | N18: 0.1472051502 | O18: 0.046225825 | P18: 0.09739465457 | Q18: 0.0112431773 | AC18: 98.00
B20: Σparameters' weight | C20: =C8+D8+E8+F8+G8 -> 100.00
I21: Parameter Weight Percentage calculation based on entered paramters' importance comparison by user
A23: Cooling System | B23: Distanc from Ideal Best (S+) | C23: Distanc from Ideal Worst (S-) | D23: S++S- | E23: Perfomance Score (PS) | F23: Rank of Cooling Systems | J23: Parameters
A24: Air-Cooled Chiller | B24: =SQRT(SUM((M10-$R$10)^2+(N10-$S$10)^2+(O10-$T$10)^2+(P10-$U$10)^2+(Q10-$V$10)^2)) -> 0.09886588828 | C24: =SQRT(SUM((M10-$W$10)^2+(N10-$X$10)^2+(O10-$Y$10)^2+(P10-$Z$10)^2+(Q10-$AA$10)^2)) -> 0.174439694 | D24: =B24+C24 -> 0.2733055823 | E24: =C24/D24 -> 0.6382588037 | F24: =_xlfn.RANK.EQ(E24,$E$24:$E$32,0) -> 5 | I24: Parameters | K24: Energy Usage | L24: Onsite water Use | M24: Total Water Use | N24: Reliability | O24: Maintenance
A25: Air-Cooled Chiller+ ASE | B25: =SQRT(SUM((M11-$R$10)^2+(N11-$S$10)^2+(O11-$T$10)^2+(P11-$U$10)^2+(Q11-$V$10)^2)) -> 0.03981910856 | C25: =SQRT(SUM((M11-$W$10)^2+(N11-$X$10)^2+(O11-$Y$10)^2+(P11-$Z$10)^2+(Q11-$AA$10)^2)) -> 0.165225959 | D25: 0.2050450676 | E25: 0.8058031387 | F25: =_xlfn.RANK.EQ(E25,$E$24:$E$32,0) -> 1 | J25: Energy Usage | K25: 1 | L25: 3 | M25: 2 | N25: 0.8 | O25: 5
A26: Pre-Cooled-Air-Cooled Chiller | B26: 0.1046876607 | C26: 0.1260992116 | D26: 0.2307868723 | E26: 0.5463881473 | F26: 6 | J26: Onsite water Use | K26: =1/L25 -> 0.3333333333 | L26: 1 | M26: 1 | N26: 0.5 | O26: 2
A27: Pre-Cooled-Air-Cooled Chiller +ASE | B27: 0.05577115601 | C27: 0.1493895133 | D27: 0.2051606693 | E27: 0.7281586368 | F27: 2 | J27: Total Water Use | K27: =1/M25 -> 0.5 | L27: =1/M26 -> 1 | M27: 1 | N27: 0.4 | O27: 1.5
A28: Water-Cooled Chiller | B28: 0.1762712706 | C28: 0.07541343168 | D28: 0.2516847023 | E28: 0.2996345467 | F28: 8 | J28: Reliability | K28: =1/N25 -> 1.25 | L28: =1/N26 -> 2 | M28: =1/N27 -> 2.5 | N28: 1 | O28: 6
A29: Water-Cooled Chiller+ASE | B29: 0.06994790975 | C29: 0.1440966595 | D29: 0.2140445693 | E29: 0.6732086687 | F29: 3 | J29: Maintenance | K29: =1/O25 -> 0.2 | L29: =1/O26 -> 0.5 | M29: =1/O27 -> 0.6666666667 | N29: =1/O28 -> 0.1666666667 | O29: 1
A30: Water-Cooled Chiller+WSE | B30: 0.1766777234 | C30: 0.07495834552 | D30: 0.2516360689 | E30: 0.2978839475 | F30: 9
A31: Water-Cooled Chiller+WSE+ASE | B31: 0.07124300123 | C31: 0.1440679842 | D31: 0.2153109854 | E31: 0.669115809 | F31: 4 | K31: =K25/(K25+K26+K27+K28+K29) -> 0.3045685279 | L31: =L26/(L25+L26+L27+L28+L29) -> 0.1333333333 | M31: =M27/(M25+M26+M27+M28+M29) -> 0.1395348837 | N31: =N28/(N25+N26+N27+N28+N29) -> 0.3488372093 | O31: =O29/(O25+O26+O27+O28+O29) -> 0.06451612903
A32: Evaporative Cooling +ASE | B32: 0.1516606336 | C32: =SQRT(SUM((M18-$W$10)^2+(N18-$X$10)^2+(O18-$Y$10)^2+(P18-$Z$10)^2+(Q18-$AA$10)^2)) -> 0.1060005085 | D32: 0.2576611421 | E32: 0.4113950115 | F32: 7 | J32: Σparameters' weight | K32: =K31/(K31+L31+M31+N31+O31)*100 -> 30.73996531 | L32: =L31/(K31+L31+M31+N31+O31)*100 -> 13.4572737 | M32: =M31/(K31+L31+M31+N31+O31)*100 -> 14.08319341 | N32: =N31/(K31+L31+M31+N31+O31)*100 -> 35.20798353 | O32: =O31/(K31+L31+M31+N31+O31)*100 -> 6.51158405
K33: =SUM(K32:O32) -> 100.00000000
A35: List of Ranked Cooling Systems | B35: Cooling Eneregy Use (MWh) | C35: Onsite Water Use (acre-ft) | D35: Total Cooling Water (acre-ft) | E35: PUE | F35: Onsite WUE (gal/kWh) | G35: Source WUE (gal/kWh) | H35: Cooling System Availbility (% of the Year)
A36: Air-Cooled Chiller+ ASE | B36: 23296.26759 | C36: 61.60203523 | D36: 90.20985184 | E36: 1.884961955 | F36: 0.1145308763 | G36: 0.8685156582 | H36: 100
A37: Pre-Cooled-Air-Cooled Chiller +ASE | B37: 21494.34763 | C37: 104.7979828 | D37: 131.1930417 | E37: 1.872105791 | F37: 0.1948410432 | G37: 0.9436833594 | H37: 100
A38: Water-Cooled Chiller+ASE | B38: 15281.4 | C38: 138.8503247 | D38: 157.6158839 | E38: 1.827778253 | F38: 0.258151363 | G38: 0.9892626644 | H38: 100
A39: Water-Cooled Chiller+WSE+ASE | B39: 15281.42 | C39: 138.8503247 | D39: 157.6159085 | E39: 1.827778396 | F39: 0.258151363 | G39: 0.9892627215 | H39: 100
A40: Air-Cooled Chiller | B40: 59271.83801 | C40: 0.1240449587 | D40: 72.90986204 | E40: 2.141636972 | F40: 0.000230625137 | G40: 0.856885414 | H40: 100
A41: Pre-Cooled-Air-Cooled Chiller | B41: 55964.32677 | C41: 105.4382149 | D41: 174.1624082 | E41: 2.118038861 | F41: 0.1960313664 | G41: 1.043246911 | H41: 100
A42: Evaporative Cooling +ASE | B42: 12101.14 | C42: 334.8013449 | D42: 349.6615448 | E42: 1.805088042 | F42: 0.6224646842 | G42: 1.344499901 | H42: 98
A43: Water-Cooled Chiller | B43: 23473.2 | C43: 380.1377766 | D43: 408.9628662 | E43: 1.886224315 | F43: 0.7067544521 | G43: 1.461244178 | H43: 100
A44: Water-Cooled Chiller+WSE | B44: 23473.2 | C44: 380.1377766 | D44: 408.9628662 | E44: 1.886224315 | F44: 0.7067544521 | G44: 1.461244178 | H44: 100
A49: IT Load (MW) | B49: 20
A50: Cooling System | B50: Annual Cooling Energy Use (MWh) | C50: Annual IT Energy Use at UPS Outlet (MWh) | D50: Annual IT Energy Use at UPS Inlet (MWh) | E50: Annual Lighting Energy Use (MWh) | F50: Annual Total Energy Use (MWh) | G50: Total Onsite Water Use (kgal) | H50: Total Cooling Water Use (kgal) | I50: Total Source Water Use (kgal) | J50: PUE | K50: WUEOnsite (gal/kWh) | L50: WUESource (gal/kWh) | M50: Cooling System Availbility (% of the Year)
A51: Air-Cooled Chiller | B51: 59,271.84 | C51: 175200.00 | D51: 219000.00 | E51: 21900.00 | F51: 375214.80 | G51: 40.41 | H51: 23749.14073 | I51: 150126.32 | J51: 2.14 | K51: 0.00 | L51: 0.856885414 | M51: 100
A52: Air-Cooled Chiller+ ASE | B52: 23,296.27 | C52: 175200.00 | D52: 219000.00 | E52: 21900.00 | F52: 330245.33 | G52: 20065.81 | H52: 29384.31656 | I52: 152163.94 | J52: 1.88 | K52: 0.11 | L52: 0.8685156582 | M52: 100
A53: Pre-Cooled-Air-Cooled Chiller | B53: 55,964.33 | C53: 175200.00 | D53: 219000.00 | E53: 21900.00 | F53: 371080.41 | G53: 34344.70 | H53: 56730.42611 | I53: 182776.86 | J53: 2.12 | K53: 0.20 | L53: 1.043246911 | M53: 100
A54: Pre-Cooled-Air-Cooled Chiller +ASE | B54: 21,494.35 | C54: 175200.00 | D54: 219000.00 | E54: 21900.00 | F54: 327992.93 | G54: 34136.15 | H54: 42733.88981 | I54: 165333.32 | J54: 1.87 | K54: 0.19 | L54: 0.9436833594 | M54: 100
A55: Water-Cooled Chiller | B55: 23,473.20 | C55: 175200.00 | D55: 219000.00 | E55: 21900.00 | F55: 330466.50 | G55: 123823.38 | H55: 133212.66 | I55: 256009.98 | J55: 1.89 | K55: 0.71 | L55: 1.461244178 | M55: 100
A56: Water-Cooled Chiller+ASE | B56: 15,281.40 | C56: 175200.00 | D56: 219000.00 | E56: 21900.00 | F56: 320226.75 | G56: 45228.12 | H56: 51340.6788 | I56: 173318.82 | J56: 1.83 | K56: 0.26 | L56: 0.9892626644 | M56: 100
A57: Water-Cooled Chiller+WSE | B57: 23,473.20 | C57: 175200.00 | D57: 219000.00 | E57: 21900.00 | F57: 330466.50 | G57: 123823.38 | H57: 133212.66 | I57: 256009.98 | J57: 1.89 | K57: 0.71 | L57: 1.461244178 | M57: 100
A58: Water-Cooled Chiller+WSE+ASE | B58: 15,281.42 | C58: 175200.00 | D58: 219000.00 | E58: 21900.00 | F58: 320226.78 | G58: 45228.12 | H58: 51340.6868 | I58: 173318.83 | J58: 1.83 | K58: 0.26 | L58: 0.9892627215 | M58: 100
A59: Evaporative Cooling +ASE | B59: 12,101.14 | C59: 175200.00 | D59: 219000.00 | E59: 21900.00 | F59: 316251.43 | G59: 109055.81 | H59: 113896.2687 | I59: 235556.38 | J59: 1.81 | K59: 0.62 | L59: 1.344499901 | M59: 98
F124: =_xlfn.RANK.EQ(E124,$E$24:$E$32,0) -> 

Sheet Reliability Default Values
C2: Scores range from 1 to 10 (1 as the lowest and 10 as the highest)
C3: Cooling System Type | D3: Annual Availability | E3: Fluctuation of IT Room Air Supply Affected by Outdoor Condition | F3: Lifetime | G3: IT Room Air Contamination | H3: Complexity | I3: Overall Reliability (out of 100)
C4: Air-Cooled Chiller | D4: 50 | E4: 10 | F4: 9 | G4: 10 | H4: 10 | I4: =SUM(D4:H4) -> 89
C5: Air-Cooled Chiller + ASE | D5: 50 | E5: 8.5 | F5: 8.75 | G5: 8 | H5: 8 | I5: =SUM(D5:H5) -> 83.25
C6: Pre-Cooled-Air-Cooled Chiller | D6: 50 | E6: 10 | F6: 9 | G6: 10 | H6: 9 | I6: 88
C7: Pre-Cooled-Air-Cooled Chiller + ASE | D7: 50 | E7: 8.5 | F7: 8.75 | G7: 8 | H7: 7 | I7: 82.25
C8: Water-Cooled Chiller | D8: 50 | E8: 10 | F8: 10 | G8: 10 | H8: 8.5 | I8: 88.5
C9: Water-Cooled Chiller + ASE | D9: 50 | E9: 8.5 | F9: 9.75 | G9: 8 | H9: 6.5 | I9: 82.75
C10: Water-Cooled Chiller + WSE | D10: 50 | E10: 9 | F10: 9.75 | G10: 10 | H10: 7.5 | I10: 86.25
C11: Water-Cooled Chiller + WSE + ASE | D11: 50 | E11: 8.5 | F11: 9.5 | G11: 8 | H11: 5.5 | I11: 81.5
C12: Evaporative Cooling + ASE (No Airflow Containment) | D12: 25 | E12: 8.5 | F12: 9.25 | G12: 8 | H12: 8 | I12: 58.75
C13: Evaporative Cooling + ASE (CAC Airflow) | D13: 37.5 | E13: 8.5 | F13: 9.25 | G13: 8 | H13: 8 | I13: 71.25
C14: Evaporative Cooling + ASE (HAC-VED Airflow) | D14: 48 | E14: 8.5 | F14: 9.25 | G14: 8 | H14: 8 | I14: 81.75
C15: Evaporative Cooling + ASE (CAC and HAC-VED Airflow) | D15: 49 | E15: 8.5 | F15: 9.25 | G15: 8 | H15: 8 | I15: 82.75

Sheet Maintenance Default Values
D2: Weights range from 1 to 10 (1 as the lowest and 10 as the highest)
D3: Annual Maintenance Actions | E3: Semi-Annual Maintenance Actions | F3: Monthly Maintenance Actions | G3: Weekly Maintenance Actions | H3: Daily Maintenance Actions | I3: Water Treatment Requirement | J3: Overall Maintenance Value
D4: 5 | E4: 4 | F4: 3 | G4: 2 | H4: 1 | I4: 10
C5: Air-Cooled Chiller | D5: 10 | E5: 4 | F5: 0 | G5: 6 | H5: 3 | I5: 0 | J5: =D5*$D$4+E5*$E$4+F5*$F$4+G5*$G$4+H5*$H$4+I5*$I$4 -> 81
C6: Air-Cooled Chiller + ASE | D6: =1+D5 -> 11 | E6: =3+E5 -> 7 | F6: =0+F5 -> 0 | G6: =1+G5 -> 7 | H6: =0+H5 -> 3 | I6: =0+I5 -> 0 | J6: =D6*$D$4+E6*$E$4+F6*$F$4+G6*$G$4+H6*$H$4+I6*$I$4 -> 100
C7: Pre-Cooled-Air-Cooled Chiller | D7: =D5+1 -> 11 | E7: =0+E5 -> 4 | F7: =1+F5 -> 1 | G7: =G5+2 -> 8 | H7: =0+H5 -> 3 | I7: 1 | J7: =D7*$D$4+E7*$E$4+F7*$F$4+G7*$G$4+H7*$H$4+I7*$I$4 -> 103
C8: Pre-Cooled-Air-Cooled Chiller + ASE | D8: =1+D7 -> 12 | E8: =3+E7 -> 7 | F8: =0+F7 -> 1 | G8: =1+G7 -> 9 | H8: =0+H7 -> 3 | I8: 1 | J8: =D8*$D$4+E8*$E$4+F8*$F$4+G8*$G$4+H8*$H$4+I8*$I$4 -> 122
C9: Water-Cooled Chiller | D9: =3+D5 -> 13 | E9: =0+E5 -> 4 | F9: =4+F5 -> 4 | G9: =7+G5 -> 13 | H9: =3+H5 -> 6 | I9: 1 | J9: 135
C10: Water-Cooled Chiller + ASE | D10: =1+D9 -> 14 | E10: =3+E9 -> 7 | F10: =0+F9 -> 4 | G10: =1+G9 -> 14 | H10: =0+H9 -> 6 | I10: 1 | J10: 154
C11: Water-Cooled Chiller + WSE | D11: =1+D9 -> 14 | E11: =0+E9 -> 4 | F11: =0+F9 -> 4 | G11: =2+G9 -> 15 | H11: =0+H9 -> 6 | I11: 1 | J11: 144
C12: Water-Cooled Chiller + WSE + ASE | D12: =1+D11 -> 15 | E12: =3+E11 -> 7 | F12: =0+F11 -> 4 | G12: =1+G11 -> 16 | H12: =0+H11 -> 6 | I12: 1 | J12: 163
C13: Evaporative Cooling + ASE | D13: =1+1 -> 2 | E13: =3 -> 3 | F13: =0+1 -> 1 | G13: =1+2 -> 3 | H13: =0+0 -> 0 | I13: 1 | J13: =D13*$D$4+E13*$E$4+F13*$F$4+G13*$G$4+H13*$H$4+I13*$I$4 -> 41

Sheet Reliability Customized Values
C2: Scores range from 1 to 10 (1 as the lowest and 10 as the highest)
C3: Cooling System Type | D3: Annual Availability | E3: Fluctuation of IT Room Air Supply Affected by Outdoor Condition | F3: Lifetime | G3: IT Room Air Contamination | H3: Complexity | I3: Overall Reliability (out of 50) | J3: Overall Reliability (Scaled to 100)
C4: Air-Cooled Chiller | I4: =SUM(D4:H4) -> 0 | J4: =I4*100/50 -> 0.0
C5: Air-Cooled Chiller + ASE | I5: =SUM(D5:H5) -> 0 | J5: =I5*100/50 -> 0.0
C6: Pre-Cooled-Air-Cooled Chiller | I6: 0 | J6: =I6*100/50 -> 0.0
C7: Pre-Cooled-Air-Cooled Chiller + ASE | I7: 0 | J7: 0.0
C8: Water-Cooled Chiller | I8: 0 | J8: 0.0
C9: Water-Cooled Chiller + ASE | I9: 0 | J9: 0.0
C10: Water-Cooled Chiller + WSE | I10: 0 | J10: 0.0
C11: Water-Cooled Chiller + WSE + ASE | I11: 0 | J11: 0.0
C12: Evaporative Cooling + ASE | I12: 0 | J12: =I12*100/50 -> 0.0

Sheet Maintenance Customized Values
D2: Weights range from 1 to 10 (1 as the lowest and 10 as the highest)
D3: Annual Maintenance Actions | E3: Semi-Annual Maintenance Actions | F3: Monthly Maintenance Actions | G3: Weekly Maintenance Actions | H3: Daily Maintenance Actions | I3: Water Treatment Requirement | J3: Overall Maintenance Score
D4: 5 | E4: 4 | F4: 3 | G4: 2 | H4: 1 | I4: 10
C5: Air-Cooled Chiller | J5: =D5*$D$4+E5*$E$4+F5*$F$4+G5*$G$4+H5*$H$4+I5*$I$4 -> 0
C6: Air-Cooled Chiller + ASE | J6: =D6*$D$4+E6*$E$4+F6*$F$4+G6*$G$4+H6*$H$4+I6*$I$4 -> 0
C7: Pre-Cooled-Air-Cooled Chiller | J7: =D7*$D$4+E7*$E$4+F7*$F$4+G7*$G$4+H7*$H$4+I7*$I$4 -> 0
C8: Pre-Cooled-Air-Cooled Chiller + ASE | J8: =D8*$D$4+E8*$E$4+F8*$F$4+G8*$G$4+H8*$H$4+I8*$I$4 -> 0
C9: Water-Cooled Chiller | J9: 0
C10: Water-Cooled Chiller + ASE | J10: 0
C11: Water-Cooled Chiller + WSE | J11: 0
C12: Water-Cooled Chiller + WSE + ASE | J12: 0
C13: Evaporative Cooling + ASE | J13: =D13*$D$4+E13*$E$4+F13*$F$4+G13*$G$4+H13*$H$4+I13*$I$4 -> 0

Sheet MCDST-Values (3) (hidden)
C1: Parameters Weight | G1: Normalized Performance Values (NPVs) | K1: Weighted Normalized Values(WNVs) | S1: Ideal Worst Value (V-)
C2: 30% | D2: 15% | E2: 5% | F2: 50%
A3: Cooling System | B3: Paramter Unit | C3: Energy Use (MWh) | D3: Onsite Water Use (acre-ft) | E3: Source Water Use (acre-ft) | F3: Reliability | G3: NPV_Energy | H3: NPV_Onsite Water | I3: NPV_Source Water | J3: NPV_Reliability | K3: WNV_Energy | L3: WNV_Onsite Water | M3: WNV_Source Water | N3: WNV_Reliability | O3: V+_Energy | P3: V+_Onsite Water | Q3: V+_Source Water | R3: V+_Reliability | S3: V-_Energy | T3: V-_Onsite Water | U3: V-_Source Water | V3: V-_Reliability
A4: Air-Cooled Chiller | B4: MWh | C4: 10,740.24 | D4: 0 | E4: 15.15 | F4: 1 | G4: =C4/SQRT(SUM($C$4^2+$C$5^2+$C$6^2+$C$7^2+$C$8^2+$C$9^2+$C$10^2+$C$11^2+$C$12)) -> 0.6454965825 | H4: =D4/SQRT(SUM($D$4^2+$D$5^2+$D$6^2+$D$7^2+$D$8^2+$D$9^2+$D$10^2+$D$11^2+$D$12^2)) -> 0 | I4: =E4/SQRT(SUM($E$4^2+$E$5^2+$E$6^2+$E$7^2+$E$8^2+$E$9^2+$E$10^2+$E$11^2+$E$12^2)) -> 0.6454965825 | J4: =F4/SQRT(SUM($F$4^2+$F$5^2+$F$6^2+$F$7^2+$F$8^2+$F$9^2+$F$10^2+$F$11^2+$F$12^2)) -> 0.5136654969 | K4: =$C$2*G4 -> 0.1936489747 | L4: =$D$2*H4 -> 0 | M4: =$E$2*I4 -> 0.03227482912 | N4: =$F$2*J4 -> 0.2568327485 | O4: =MIN(K4:K12) -> 0.06499503775 | P4: =MIN(L4:L12) -> 0 | Q4: =MIN(M4:M12) -> 0.01083250629 | R4: =MAX(N4:N12) -> 0.2568327485 | S4: =MAX(K4:K12) -> 0.1936489747 | T4: =MAX(L4:L12) -> 0.1493346509 | U4: =MAX(M4:M12) -> 0.03227482912 | V4: =MIN(N4:N12) -> 0.1797829239
A5: Air-Cooled Chiller+ ASE | B5: MWh | C5: 4,727.42 | D5: 0 | E5: 6.67 | F5: 0.7 | G5: =C5/SQRT(SUM($C$4^2+$C$5^2+$C$6^2+$C$7^2+$C$8^2+$C$9^2+$C$10^2+$C$11^2+$C$12)) -> 0.2841213121 | H5: =D5/SQRT(SUM($D$4^2+$D$5^2+$D$6^2+$D$7^2+$D$8^2+$D$9^2+$D$10^2+$D$11^2+$D$12^2)) -> 0 | I5: =E5/SQRT(SUM($E$4^2+$E$5^2+$E$6^2+$E$7^2+$E$8^2+$E$9^2+$E$10^2+$E$11^2+$E$12^2)) -> 0.2841213121 | J5: =F5/SQRT(SUM($F$4^2+$F$5^2+$F$6^2+$F$7^2+$F$8^2+$F$9^2+$F$10^2+$F$11^2+$F$12^2)) -> 0.3595658479 | K5: =$C$2*G5 -> 0.08523639362 | L5: =$D$2*H5 -> 0 | M5: =$E$2*I5 -> 0.0142060656 | N5: =$F$2*J5 -> 0.1797829239
A6: Pre-Cooled-Air-Cooled Chiller | B6: MWh | C6: 9,248.59 | D6: 7.258651705 | E6: 13.05 | F6: 1 | G6: =C6/SQRT(SUM($C$4^2+$C$5^2+$C$6^2+$C$7^2+$C$8^2+$C$9^2+$C$10^2+$C$11^2+$C$12)) -> 0.555847005 | H6: =D6/SQRT(SUM($D$4^2+$D$5^2+$D$6^2+$D$7^2+$D$8^2+$D$9^2+$D$10^2+$D$11^2+$D$12^2)) -> 0.07933816222 | I6: =E6/SQRT(SUM($E$4^2+$E$5^2+$E$6^2+$E$7^2+$E$8^2+$E$9^2+$E$10^2+$E$11^2+$E$12^2)) -> 0.555847005 | J6: =F6/SQRT(SUM($F$4^2+$F$5^2+$F$6^2+$F$7^2+$F$8^2+$F$9^2+$F$10^2+$F$11^2+$F$12^2)) -> 0.5136654969 | K6: =$C$2*G6 -> 0.1667541015 | L6: =$D$2*H6 -> 0.01190072433 | M6: =$E$2*I6 -> 0.02779235025 | N6: =$F$2*J6 -> 0.2568327485
A7: Pre-Cooled-Air-Cooled Chiller +ASE | B7: MWh | C7: 3,604.78 | D7: 4.626449848 | E7: 5.09 | F7: 0.7 | G7: =C7/SQRT(SUM($C$4^2+$C$5^2+$C$6^2+$C$7^2+$C$8^2+$C$9^2+$C$10^2+$C$11^2+$C$12)) -> 0.2166501258 | H7: =D7/SQRT(SUM($D$4^2+$D$5^2+$D$6^2+$D$7^2+$D$8^2+$D$9^2+$D$10^2+$D$11^2+$D$12^2)) -> 0.05056779736 | I7: =E7/SQRT(SUM($E$4^2+$E$5^2+$E$6^2+$E$7^2+$E$8^2+$E$9^2+$E$10^2+$E$11^2+$E$12^2)) -> 0.2166501258 | J7: =F7/SQRT(SUM($F$4^2+$F$5^2+$F$6^2+$F$7^2+$F$8^2+$F$9^2+$F$10^2+$F$11^2+$F$12^2)) -> 0.3595658479 | K7: =$C$2*G7 -> 0.06499503775 | L7: =$D$2*H7 -> 0.007585169604 | M7: =$E$2*I7 -> 0.01083250629 | N7: =$F$2*J7 -> 0.1797829239
A8: Water-Cooled Chiller | B8: MWh | C8: 6,373.00 | D8: 91.08422211 | E8: 8.99 | F8: 0.9 | G8: =C8/SQRT(SUM($C$4^2+$C$5^2+$C$6^2+$C$7^2+$C$8^2+$C$9^2+$C$10^2+$C$11^2+$C$12)) -> 0.3830222866 | H8: =D8/SQRT(SUM($D$4^2+$D$5^2+$D$6^2+$D$7^2+$D$8^2+$D$9^2+$D$10^2+$D$11^2+$D$12^2)) -> 0.9955643394 | I8: =E8/SQRT(SUM($E$4^2+$E$5^2+$E$6^2+$E$7^2+$E$8^2+$E$9^2+$E$10^2+$E$11^2+$E$12^2)) -> 0.3830222866 | J8: =F8/SQRT(SUM($F$4^2+$F$5^2+$F$6^2+$F$7^2+$F$8^2+$F$9^2+$F$10^2+$F$11^2+$F$12^2)) -> 0.4622989472 | K8: =$C$2*G8 -> 0.114906686 | L8: =$D$2*H8 -> 0.1493346509 | M8: =$E$2*I8 -> 0.01915111433 | N8: =$F$2*J8 -> 0.2311494736
A17: Cooling System | B17: Distanc from Ideal Best (S+) | C17: Distanc from Ideal Worst (S-) | D17: S++S- | E17: Perfomance Score (PS) | F17: Rank of Cooling Systems
A18: Air-Cooled Chiller | B18: =SQRT(SUM((K4-$O$4)^2+(L4-$P$4)^2+(M4-$Q$4)^2+(N4-$R$4)^2)) -> 0.1304285579 | C18: =SQRT(SUM((K4-$S$4)^2+(L4-$T$4)^2+(M4-$U$4)^2+(N4-$V$4)^2)) -> 0.1680402137 | D18: =B18+C18 -> 0.2984687716 | E18: =C18/D18 -> 0.5630076903 | F18: =_xlfn.RANK.EQ(E18,$E$18:$E$26,0) -> 4
A19: Air-Cooled Chiller+ ASE | B19: =SQRT(SUM((K5-$O$4)^2+(L5-$P$4)^2+(M5-$Q$4)^2+(N5-$R$4)^2)) -> 0.07973561846 | C19: =SQRT(SUM((K5-$S$4)^2+(L5-$T$4)^2+(M5-$U$4)^2+(N5-$V$4)^2)) -> 0.1854200796 | D19: =B19+C19 -> 0.2651556981 | E19: =C19/D19 -> 0.6992875543 | F19: =_xlfn.RANK.EQ(E19,$E$18:$E$26,0) -> 2
A20: Pre-Cooled-Air-Cooled Chiller | B20: =SQRT(SUM((K6-$O$4)^2+(L6-$P$4)^2+(M6-$Q$4)^2+(N6-$R$4)^2)) -> 0.1038468613 | C20: =SQRT(SUM((K6-$S$4)^2+(L6-$T$4)^2+(M6-$U$4)^2+(N6-$V$4)^2)) -> 0.1599005518 | D20: =B20+C20 -> 0.2637474131 | E20: =C20/D20 -> 0.6062639626 | F20: =_xlfn.RANK.EQ(E20,$E$18:$E$26,0) -> 3
A21: Pre-Cooled-Air-Cooled Chiller +ASE | B21: =SQRT(SUM((K7-$O$4)^2+(L7-$P$4)^2+(M7-$Q$4)^2+(N7-$R$4)^2)) -> 0.07742228529 | C21: =SQRT(SUM((K7-$S$4)^2+(L7-$T$4)^2+(M7-$U$4)^2+(N7-$V$4)^2)) -> 0.1926253466 | D21: =B21+C21 -> 0.2700476319 | E21: =C21/D21 -> 0.713301373 | F21: =_xlfn.RANK.EQ(E21,$E$18:$E$26,0) -> 1
A22: Water-Cooled Chiller | B22: =SQRT(SUM((K8-$O$4)^2+(L8-$P$4)^2+(M8-$Q$4)^2+(N8-$R$4)^2)) -> 0.1597524348 | C22: =SQRT(SUM((K8-$S$4)^2+(L8-$T$4)^2+(M8-$U$4)^2+(N8-$V$4)^2)) -> 0.09492682633 | D22: =B22+C22 -> 0.2546792612 | E22: =C22/D22 -> 0.3727308847 | F22: =_xlfn.RANK.EQ(E22,$E$18:$E$26,0) -> 5
